Workbook

Sheet means unmatched TEMP (hidden)
A1: PROPORTIONS: UNMATCHED
A2: 1-type I | B2: power | C2: z_a | D2: z_b | G2: m0 | H2: % | I2: m1 | J2: s0 | K2: s1 | M2: cluster | N2: k | O2: # clusters | P2: * to be conservative, round up
H3: reduction | L3: n per arm | M3: size | O3: per arm*
A5: 0.95 | B5: 0.8 | C5: =NORMSINV(1-(0.5*(1-A5))) -> 1.959963985 | D5: =NORMSINV(B5) -> 0.8416212336 | E5: =(C5+D5)^2 -> 7.848879734 | G5: 2.63 | H5: 0.6 | I5: =G5*(1-H5) -> 1.052 | J5: 2.6 | K5: 1.58 | L5: =E5*((J5^2+K5^2))/(G5^2-I5^2) -> 12.50428908 | M5: 5 | N5: 0.1 | O5: =2+E5*(((J5^2+K5^2)/M5)+(N5^2*(G5^2+I5^2)))/((G5-I5)^2) -> 8.088243249 | P5: =INT(O5)+1 -> 9
A6: 0.95 | B6: 0.8 | C6: 1.959963985 | D6: 0.8416212336 | E6: 7.848879734 | G6: 2.63 | H6: 0.6 | I6: =G6*(1-H6) -> 1.052 | J6: 2.6 | K6: 1.58 | L6: =E6*(J6^2+K6^2)/(G6^2-I6^2) -> 12.50428908 | M6: 5 | N6: 0.15 | O6: =2+E6*(((J6^2+K6^2)/M6)+(N6^2*(G6^2+I6^2)))/((G6-I6)^2) -> 8.404378683 | P6: 9
A7: 0.95 | B7: 0.8 | C7: =NORMSINV(1-(0.5*(1-A7))) -> 1.959963985 | D7: =NORMSINV(B7) -> 0.8416212336 | E7: =(C7+D7)^2 -> 7.848879734 | G7: 2.63 | H7: 0.6 | I7: =G7*(1-H7) -> 1.052 | J7: 2.6 | K7: 1.58 | L7: =E7*(J7^2+K7^2)/(G7^2-I7^2) -> 12.50428908 | M7: 5 | N7: 0.25 | O7: 9.416012071 | P7: 10
A9: 0.95 | B9: 0.9 | C9: 1.959963985 | D9: 1.281551566 | E9: 10.50742306 | G9: 2.63 | H9: 0.6 | I9: =G9*(1-H9) -> 1.052 | J9: 2.6 | K9: 1.58 | L9: =E9*(J9^2+K9^2)/(G9^2-I9^2) -> 16.73969533 | M9: 5 | N9: 0.1 | O9: 10.15043034 | P9: 11
A10: 0.95 | B10: 0.9 | C10: 1.959963985 | D10: 1.281551566 | E10: 10.50742306 | G10: 2.63 | H10: 0.6 | I10: =G10*(1-H10) -> 1.052 | J10: 2.6 | K10: 1.58 | L10: =E10*(J10^2+K10^2)/(G10^2-I10^2) -> 16.73969533 | M10: 5 | N10: 0.15 | O10: 10.57364599 | P10: 11
A11: 0.95 | B11: 0.9 | C11: =NORMSINV(1-(0.5*(1-A11))) -> 1.959963985 | D11: =NORMSINV(B11) -> 1.281551566 | E11: =(C11+D11)^2 -> 10.50742306 | G11: 2.63 | H11: 0.6 | I11: =G11*(1-H11) -> 1.052 | J11: 2.6 | K11: 1.58 | L11: =E11*(J11^2+K11^2)/(G11^2-I11^2) -> 16.73969533 | M11: 5 | N11: 0.2 | O11: 11.1661479 | P11: 12
A14: assumes different values of k
A15: used mean and SD for pre and post implementation

Sheet proportions- matched (hidden)
A1: PROPORTIONS: MATCHED
A2: 1-type I | B2: power | C2: z_a | D2: z_b | F2: p_0 | G2: % | H2: p_1 | I2: cluster | J2: k | K2: # clusters | L2: * to be conservative, round up | M2: # Clusters With Adjustments | R2: Expected deaths per year per cluster
G3: reduction | I3: size | K3: per arm* | M3: DEFF | N3: Male:Female | O3: Non-response 10% | P3: Trend 3 y | Q3: Prior MCCD 9%
G4: What if | M4: 2 | N4: 2 | O4: 1.11 | P4: 0.333 | Q4: 1.098 | R4: 102 | S4: per fraction | T4: CDR increased if rural only
A5: 0.95 | B5: 0.8 | C5: =NORMSINV(1-(0.5*(1-A5))) -> 1.959963985 | D5: =NORMSINV(B5) -> 0.8416212336 | E5: =(C5+D5)^2 -> 7.848879734 | F5: 0.02 | G5: 1 | H5: =F5*(1-G5) -> 0 | I5: =S5 -> 2.04 | J5: 0.1 | K5: =2+E5*((F5*(1-F5)/I5)+(H5*(1-H5)/I5)+(J5*J5)*((F5*F5)+(H5*H5)))/((H5-F5)^2) -> 190.605502 | L5: =INT(K5)+1 -> 191 | M5: =L5*M$4 -> 382 | N5: =M5*N$4 -> 764 | O5: =N5*O$4 -> 848.04 | P5: =O5*P$4 -> 282.39732 | Q5: =P5*Q$4 -> 310.0722574 | R5: 0.02 | S5: =0.02*R4 -> 2.04
A6: 0.95 | B6: 0.8 | C6: 1.959963985 | D6: 0.8416212336 | E6: 7.848879734 | F6: 0.05 | G6: 0.5 | H6: 0.025 | I6: 5.1 | J6: 0.25 | K6: 181.4373179 | L6: 182 | M6: =L6*M$4 -> 364 | N6: 728 | O6: 808.08 | P6: 269.09064 | Q6: 295.4615227 | R6: 0.05 | S6: =0.05*R4 -> 5.1
A7: 0.95 | B7: 0.8 | C7: 1.959963985 | D7: 0.8416212336 | E7: 7.848879734 | F7: 0.1 | G7: 0.27 | H7: 0.073 | I7: 10.2 | J7: 0.25 | K7: 178.7451832 | L7: 179 | M7: 358 | N7: 716 | O7: 794.76 | P7: 264.65508 | Q7: 290.5912778 | R7: 0.1 | S7: =0.1*R4 -> 10.2
A8: 0.95 | B8: 0.8 | C8: 1.959963985 | D8: 0.8416212336 | E8: 7.848879734 | F8: 0.15 | G8: 0.215 | H8: 0.11775 | I8: 15.3 | J8: 0.25 | K8: 133.2798309 | L8: 134 | M8: 268 | N8: 536 | O8: 594.96 | P8: 198.12168 | Q8: 217.5376046 | R8: 0.15 | S8: =0.15*R4 -> 15.3
A9: 0.95 | B9: 0.8 | C9: 1.959963985 | D9: 0.8416212336 | E9: 7.848879734 | F9: 0.2 | G9: 0.17 | H9: 0.166 | I9: 20.4 | J9: 0.25 | K9: 129.9982396 | L9: 130 | M9: 260 | N9: 520 | O9: 577.2 | P9: 192.2076 | Q9: 211.0439448 | R9: 0.2 | S9: =0.2*R4 -> 20.4
A10: 0.95 | B10: 0.8 | C10: 1.959963985 | D10: 0.8416212336 | E10: 7.848879734 | F10: 0.25 | G10: 0.14 | H10: 0.215 | I10: 25.5 | J10: 0.25 | K10: 135.0585734 | L10: 136 | M10: 272 | N10: 544 | O10: 603.84 | P10: 201.07872 | Q10: 220.7844346 | R10: 0.25 | S10: =0.25*R4 -> 25.5
Q11: No. of clusters
L12: =INT(K12)+1 -> 1
L13: 1
L14: 1
L15: 1
L16: 1
L17: 1

Sheet rates - matched (hidden)
A1: MATCHED RATES
A2: 1-type I | B2: power | C2: z_a | D2: z_b | F2: l_0 | G2: % | H2: l_1 | I2: # of | J2: cluster | K2: person | L2: k | M2: # clusters | N2: * to be conservative, round up
G3: reduction | I3: yrs | J3: size | K3: years | M3: per arm*
A4: 0.95 | B4: 0.8 | C4: =NORMSINV(1-(0.5*(1-A4))) -> 1.959963985 | D4: =NORMSINV(B4) -> 0.8416212336 | E4: =(C4+D4)^2 -> 7.848879734 | F4: 0.02 | G4: 0.6 | H4: =F4*(1-G4) -> 0.008 | I4: 1 | J4: 300 | K4: =I4*J4*(0.975)^I4 -> 292.5 | L4: 0.25 | M4: =2+E4*(((F4+H4)/K4)+(L4*L4)*((F4*F4)+(H4*H4)))/((F4-H4)^2) -> 8.798356004
A5: 0.95 | B5: 0.8 | C5: =NORMSINV(1-(0.5*(1-A5))) -> 1.959963985 | D5: =NORMSINV(B5) -> 0.8416212336 | E5: =(C5+D5)^2 -> 7.848879734 | F5: 0.04 | G5: 0.6 | H5: =F5*(1-G5) -> 0.016 | I5: 1 | J5: 300 | K5: =I5*J5*(0.975)^I5 -> 292.5 | L5: 0.25 | M5: =2+E5*(((F5+H5)/K5)+(L5*L5)*((F5*F5)+(H5*H5)))/((F5-H5)^2) -> 6.189516587
A6: 0.95 | B6: 0.8 | C6: =NORMSINV(1-(0.5*(1-A6))) -> 1.959963985 | D6: =NORMSINV(B6) -> 0.8416212336 | E6: =(C6+D6)^2 -> 7.848879734 | F6: 0.06 | G6: 0.6 | H6: =F6*(1-G6) -> 0.024 | I6: 1 | J6: 300 | K6: 292.5 | L6: 0.25 | M6: 5.319903447
A7: 0.95 | B7: 0.8 | C7: =NORMSINV(1-(0.5*(1-A7))) -> 1.959963985 | D7: =NORMSINV(B7) -> 0.8416212336 | E7: =(C7+D7)^2 -> 7.848879734 | F7: 0.08 | G7: 0.6 | H7: =F7*(1-G7) -> 0.032 | I7: 1 | J7: 300 | K7: 292.5 | L7: 0.25 | M7: 4.885096878
A8: 0.95 | B8: 0.8 | C8: =NORMSINV(1-(0.5*(1-A8))) -> 1.959963985 | D8: =NORMSINV(B8) -> 0.8416212336 | E8: =(C8+D8)^2 -> 7.848879734 | F8: 0.1 | G8: 0.6 | H8: =F8*(1-G8) -> 0.04 | I8: 1 | J8: 300 | K8: 292.5 | L8: 0.25 | M8: 4.624212936
A10: 0.95 | B10: 0.8 | C10: =NORMSINV(1-(0.5*(1-A10))) -> 1.959963985 | D10: =NORMSINV(B10) -> 0.8416212336 | E10: =(C10+D10)^2 -> 7.848879734 | F10: 0.02 | G10: 0.6 | H10: =F10*(1-G10) -> 0.008 | I10: 1 | J10: 300 | K10: 292.5 | L10: 0.25 | M10: 8.798356004
A11: 0.95 | B11: 0.8 | C11: =NORMSINV(1-(0.5*(1-A11))) -> 1.959963985 | D11: =NORMSINV(B11) -> 0.8416212336 | E11: =(C11+D11)^2 -> 7.848879734 | F11: 0.04 | G11: 0.6 | H11: =F11*(1-G11) -> 0.016 | I11: 1 | J11: 300 | K11: 292.5 | L11: 0.25 | M11: 6.189516587
A12: 0.95 | B12: 0.8 | C12: =NORMSINV(1-(0.5*(1-A12))) -> 1.959963985 | D12: =NORMSINV(B12) -> 0.8416212336 | E12: =(C12+D12)^2 -> 7.848879734 | F12: 0.06 | G12: 0.6 | H12: =F12*(1-G12) -> 0.024 | I12: 1 | J12: 300 | K12: 292.5 | L12: 0.25 | M12: 5.319903447
A13: 0.95 | B13: 0.8 | C13: =NORMSINV(1-(0.5*(1-A13))) -> 1.959963985 | D13: =NORMSINV(B13) -> 0.8416212336 | E13: =(C13+D13)^2 -> 7.848879734 | F13: 0.08 | G13: 0.6 | H13: =F13*(1-G13) -> 0.032 | I13: 1 | J13: 300 | K13: 292.5 | L13: 0.25 | M13: 4.885096878
A14: 0.95 | B14: 0.8 | C14: =NORMSINV(1-(0.5*(1-A14))) -> 1.959963985 | D14: =NORMSINV(B14) -> 0.8416212336 | E14: =(C14+D14)^2 -> 7.848879734 | F14: 0.1 | G14: 0.6 | H14: =F14*(1-G14) -> 0.04 | I14: 1 | J14: 300 | K14: 292.5 | L14: 0.25 | M14: 4.624212936

Sheet rates - unmatched loss to FU (hidden)
A1: RATES UNMATCHED | K1: lost to fup
A2: 1-type I | B2: power | C2: z_a | D2: z_b | F2: l_0 | G2: % | H2: l_1 | I2: # of | J2: cluster | K2: person | L2: k | M2: # clusters | N2: * to be conservative,
G3: reduction | I3: yrs | J3: size | K3: years | M3: per arm* | N3: round up
A4: 0.95 | B4: 0.8 | C4: =NORMSINV(1-(0.5*(1-A4))) -> 1.959963985 | D4: =NORMSINV(B4) -> 0.8416212336 | E4: =(C4+D4)^2 -> 7.848879734 | F4: 0.01 | G4: 0.6 | H4: =F4*(1-G4) -> 0.004 | I4: 1 | J4: 2000 | K4: =I4*J4*0.95 -> 1900 | L4: 0.25 | M4: =1+E4*(((F4+H4)/K4)+(L4*L4)*((F4*F4)+(H4*H4)))/((F4-H4)^2) -> 4.187173021 | N4: =INT(M4)+1 -> 5
A5: 0.95 | B5: 0.8 | C5: =NORMSINV(1-(0.5*(1-A5))) -> 1.959963985 | D5: =NORMSINV(B5) -> 0.8416212336 | E5: =(C5+D5)^2 -> 7.848879734 | F5: 0.02 | G5: 0.6 | H5: =F5*(1-G5) -> 0.008 | I5: 1 | J5: 2000 | K5: =I5*J5*0.95 -> 1900 | L5: 0.25 | M5: =1+E5*(((F5+H5)/K5)+(L5*L5)*((F5*F5)+(H5*H5)))/((F5-H5)^2) -> 3.383925095 | N5: =INT(M5)+1 -> 4
A6: 0.95 | B6: 0.8 | C6: =NORMSINV(1-(0.5*(1-A6))) -> 1.959963985 | D6: =NORMSINV(B6) -> 0.8416212336 | E6: =(C6+D6)^2 -> 7.848879734 | F6: 0.04 | G6: 0.6 | H6: =F6*(1-G6) -> 0.016 | I6: 1 | J6: 2000 | K6: =I6*J6*0.95 -> 1900 | L6: 0.25 | M6: =1+E6*(((F6+H6)/K6)+(L6*L6)*((F6*F6)+(H6*H6)))/((F6-H6)^2) -> 2.982301132 | N6: 3
A8: 0.95 | B8: 0.9 | C8: =NORMSINV(1-(0.5*(1-A8))) -> 1.959963985 | D8: =NORMSINV(B8) -> 1.281551566 | E8: =(C8+D8)^2 -> 10.50742306 | F8: 0.01 | G8: 0.6 | H8: =F8*(1-G8) -> 0.004 | I8: 1 | J8: 2000 | K8: =I8*J8*0.95 -> 1900 | L8: 0.25 | M8: =1+E8*(((F8+H8)/K8)+(L8*L8)*((F8*F8)+(H8*H8)))/((F8-H8)^2) -> 5.266720403 | N8: 6
A9: 0.95 | B9: 0.9 | C9: =NORMSINV(1-(0.5*(1-A9))) -> 1.959963985 | D9: =NORMSINV(B9) -> 1.281551566 | E9: =(C9+D9)^2 -> 10.50742306 | F9: 0.02 | G9: 0.6 | H9: =F9*(1-G9) -> 0.008 | I9: 1 | J9: 2000 | K9: =I9*J9*0.95 -> 1900 | L9: 0.25 | M9: =1+E9*(((F9+H9)/K9)+(L9*L9)*((F9*F9)+(H9*H9)))/((F9-H9)^2) -> 4.191399329 | N9: 5
A10: 0.95 | B10: 0.9 | C10: =NORMSINV(1-(0.5*(1-A10))) -> 1.959963985 | D10: =NORMSINV(B10) -> 1.281551566 | E10: =(C10+D10)^2 -> 10.50742306 | F10: 0.04 | G10: 0.6 | H10: =F10*(1-G10) -> 0.016 | I10: 1 | J10: 2000 | K10: =I10*J10*0.95 -> 1900 | L10: 0.25 | M10: =1+E10*(((F10+H10)/K10)+(L10*L10)*((F10*F10)+(H10*H10)))/((F10-H10)^2) -> 3.653738792 | N10: 4
A13: 0.95 | B13: 0.85 | C13: =NORMSINV(1-(0.5*(1-A13))) -> 1.959963985 | D13: =NORMSINV(B13) -> 1.036433389 | E13: =(C13+D13)^2 -> 8.978397223 | F13: 0.01 | G13: 0.5 | H13: =F13*(1-G13) -> 0.005 | I13: 1 | J13: 2000 | K13: =I13*J13*0.95 -> 1900 | L13: 0.25 | M13: =1+E13*(((F13+H13)/K13)+(L13*L13)*((F13*F13)+(H13*H13)))/((F13-H13)^2) -> 6.641032466 | N13: =INT(M13)+1 -> 7
A14: 0.95 | B14: 0.85 | C14: =NORMSINV(1-(0.5*(1-A14))) -> 1.959963985 | D14: =NORMSINV(B14) -> 1.036433389 | E14: =(C14+D14)^2 -> 8.978397223 | F14: 0.02 | G14: 0.5 | H14: =F14*(1-G14) -> 0.01 | I14: 1 | J14: 2000 | K14: =I14*J14*0.95 -> 1900 | L14: 0.25 | M14: =1+E14*(((F14+H14)/K14)+(L14*L14)*((F14*F14)+(H14*H14)))/((F14-H14)^2) -> 5.223390799 | N14: =INT(M14)+1 -> 6
A15: 0.95 | B15: 0.85 | C15: =NORMSINV(1-(0.5*(1-A15))) -> 1.959963985 | D15: =NORMSINV(B15) -> 1.036433389 | E15: =(C15+D15)^2 -> 8.978397223 | F15: 0.04 | G15: 0.5 | H15: =F15*(1-G15) -> 0.02 | I15: 1 | J15: 2000 | K15: =I15*J15*0.95 -> 1900 | L15: 0.25 | M15: =1+E15*(((F15+H15)/K15)+(L15*L15)*((F15*F15)+(H15*H15)))/((F15-H15)^2) -> 4.514569966 | N15: 5
A17: 0.95 | B17: 0.85 | C17: =NORMSINV(1-(0.5*(1-A17))) -> 1.959963985 | D17: =NORMSINV(B17) -> 1.036433389 | E17: =(C17+D17)^2 -> 8.978397223 | F17: 0.009 | G17: 0.5 | H17: =F17*(1-G17) -> 0.0045 | I17: 1 | J17: 2000 | K17: =I17*J17*0.95 -> 1900 | L17: 0.25 | M17: =1+E17*(((F17+H17)/K17)+(L17*L17)*((F17*F17)+(H17*H17)))/((F17-H17)^2) -> 6.956063947 | N17: 7
A18: 0.95 | B18: 0.85 | C18: =NORMSINV(1-(0.5*(1-A18))) -> 1.959963985 | D18: =NORMSINV(B18) -> 1.036433389 | E18: =(C18+D18)^2 -> 8.978397223 | F18: 0.018 | G18: 0.5 | H18: =F18*(1-G18) -> 0.009 | I18: 1 | J18: 2000 | K18: =I18*J18*0.95 -> 1900 | L18: 0.25 | M18: =1+E18*(((F18+H18)/K18)+(L18*L18)*((F18*F18)+(H18*H18)))/((F18-H18)^2) -> 5.38090654 | N18: 6
A19: 0.95 | B19: 0.85 | C19: =NORMSINV(1-(0.5*(1-A19))) -> 1.959963985 | D19: =NORMSINV(B19) -> 1.036433389 | E19: =(C19+D19)^2 -> 8.978397223 | F19: 0.027 | G19: 0.5 | H19: =F19*(1-G19) -> 0.0135 | I19: 1 | J19: 2000 | K19: =I19*J19*0.95 -> 1900 | L19: 0.25 | M19: =1+E19*(((F19+H19)/K19)+(L19*L19)*((F19*F19)+(H19*H19)))/((F19-H19)^2) -> 4.855854071 | N19: 5
A22: 0.95 | B22: 0.8 | C22: =NORMSINV(1-(0.5*(1-A22))) -> 1.959963985 | D22: =NORMSINV(B22) -> 0.8416212336 | E22: =(C22+D22)^2 -> 7.848879734 | F22: 0.009 | G22: 0.6 | H22: =F22*(1-G22) -> 0.0036 | I22: 1 | J22: 2000 | K22: =I22*J22*0.95 -> 1900 | L22: 0.25 | M22: =1+E22*(((F22+H22)/K22)+(L22*L22)*((F22*F22)+(H22*H22)))/((F22-H22)^2) -> 4.36567256 | N22: =INT(M22)+1 -> 5
A23: 0.95 | B23: 0.8 | C23: =NORMSINV(1-(0.5*(1-A23))) -> 1.959963985 | D23: =NORMSINV(B23) -> 0.8416212336 | E23: =(C23+D23)^2 -> 7.848879734 | F23: 0.018 | G23: 0.6 | H23: =F23*(1-G23) -> 0.0072 | I23: 1 | J23: 2000 | K23: =I23*J23*0.95 -> 1900 | L23: 0.25 | M23: =1+E23*(((F23+H23)/K23)+(L23*L23)*((F23*F23)+(H23*H23)))/((F23-H23)^2) -> 3.473174864 | N23: =INT(M23)+1 -> 4
A24: 0.95 | B24: 0.8 | C24: =NORMSINV(1-(0.5*(1-A24))) -> 1.959963985 | D24: =NORMSINV(B24) -> 0.8416212336 | E24: =(C24+D24)^2 -> 7.848879734 | F24: 0.027 | G24: 0.6 | H24: =F24*(1-G24) -> 0.0108 | I24: 1 | J24: 2000 | K24: =I24*J24*0.95 -> 1900 | L24: 0.25 | M24: =1+E24*(((F24+H24)/K24)+(L24*L24)*((F24*F24)+(H24*H24)))/((F24-H24)^2) -> 3.175675632 | N24: 4
A26: 0.95 | B26: 0.9 | C26: =NORMSINV(1-(0.5*(1-A26))) -> 1.959963985 | D26: =NORMSINV(B26) -> 1.281551566 | E26: =(C26+D26)^2 -> 10.50742306 | F26: 0.009 | G26: 0.6 | H26: =F26*(1-G26) -> 0.0036 | I26: 1 | J26: 2000 | K26: =I26*J26*0.95 -> 1900 | L26: 0.25 | M26: =1+E26*(((F26+H26)/K26)+(L26*L26)*((F26*F26)+(H26*H26)))/((F26-H26)^2) -> 5.505680641 | N26: 6
A27: 0.95 | B27: 0.9 | C27: =NORMSINV(1-(0.5*(1-A27))) -> 1.959963985 | D27: =NORMSINV(B27) -> 1.281551566 | E27: =(C27+D27)^2 -> 10.50742306 | F27: 0.018 | G27: 0.6 | H27: =F27*(1-G27) -> 0.0072 | I27: 1 | J27: 2000 | K27: =I27*J27*0.95 -> 1900 | L27: 0.25 | M27: =1+E27*(((F27+H27)/K27)+(L27*L27)*((F27*F27)+(H27*H27)))/((F27-H27)^2) -> 4.310879448 | N27: 5
A28: 0.95 | B28: 0.9 | C28: =NORMSINV(1-(0.5*(1-A28))) -> 1.959963985 | D28: =NORMSINV(B28) -> 1.281551566 | E28: =(C28+D28)^2 -> 10.50742306 | F28: 0.027 | G28: 0.6 | H28: =F28*(1-G28) -> 0.0108 | I28: 1 | J28: 2000 | K28: =I28*J28*0.95 -> 1900 | L28: 0.25 | M28: =1+E28*(((F28+H28)/K28)+(L28*L28)*((F28*F28)+(H28*H28)))/((F28-H28)^2) -> 3.912612384 | N28: 4
A30: 0.95 | B30: 0.8 | C30: =NORMSINV(1-(0.5*(1-A30))) -> 1.959963985 | D30: =NORMSINV(B30) -> 0.8416212336 | E30: =(C30+D30)^2 -> 7.848879734 | F30: 0.007 | G30: 0.6 | H30: =F30*(1-G30) -> 0.0028 | I30: 1 | J30: 2000 | K30: =I30*J30*0.95 -> 1900 | L30: 0.25 | M30: =1+E30*(((F30+H30)/K30)+(L30*L30)*((F30*F30)+(H30*H30)))/((F30-H30)^2) -> 4.875671243 | N30: =INT(M30)+1 -> 5
A31: 0.95 | B31: 0.8 | C31: =NORMSINV(1-(0.5*(1-A31))) -> 1.959963985 | D31: =NORMSINV(B31) -> 0.8416212336 | E31: =(C31+D31)^2 -> 7.848879734 | F31: 0.014 | G31: 0.6 | H31: =F31*(1-G31) -> 0.0056 | I31: 1 | J31: 2000 | K31: =I31*J31*0.95 -> 1900 | L31: 0.25 | M31: =1+E31*(((F31+H31)/K31)+(L31*L31)*((F31*F31)+(H31*H31)))/((F31-H31)^2) -> 3.728174206 | N31: =INT(M31)+1 -> 4
A32: 0.95 | B32: 0.8 | C32: =NORMSINV(1-(0.5*(1-A32))) -> 1.959963985 | D32: =NORMSINV(B32) -> 0.8416212336 | E32: =(C32+D32)^2 -> 7.848879734 | F32: 0.021 | G32: 0.6 | H32: =F32*(1-G32) -> 0.0084 | I32: 1 | J32: 2000 | K32: =I32*J32*0.95 -> 1900 | L32: 0.25 | M32: =1+E32*(((F32+H32)/K32)+(L32*L32)*((F32*F32)+(H32*H32)))/((F32-H32)^2) -> 3.345675194 | N32: 4
A34: 0.95 | B34: 0.9 | C34: =NORMSINV(1-(0.5*(1-A34))) -> 1.959963985 | D34: =NORMSINV(B34) -> 1.281551566 | E34: =(C34+D34)^2 -> 10.50742306 | F34: 0.007 | G34: 0.6 | H34: =F34*(1-G34) -> 0.0028 | I34: 1 | J34: 2000 | K34: =I34*J34*0.95 -> 1900 | L34: 0.25 | M34: =1+E34*(((F34+H34)/K34)+(L34*L34)*((F34*F34)+(H34*H34)))/((F34-H34)^2) -> 6.18842418 | N34: 7
A35: 0.95 | B35: 0.9 | C35: =NORMSINV(1-(0.5*(1-A35))) -> 1.959963985 | D35: =NORMSINV(B35) -> 1.281551566 | E35: =(C35+D35)^2 -> 10.50742306 | F35: 0.014 | G35: 0.6 | H35: =F35*(1-G35) -> 0.0056 | I35: 1 | J35: 2000 | K35: =I35*J35*0.95 -> 1900 | L35: 0.25 | M35: =1+E35*(((F35+H35)/K35)+(L35*L35)*((F35*F35)+(H35*H35)))/((F35-H35)^2) -> 4.652251218 | N35: 5
A36: 0.95 | B36: 0.9 | C36: =NORMSINV(1-(0.5*(1-A36))) -> 1.959963985 | D36: =NORMSINV(B36) -> 1.281551566 | E36: =(C36+D36)^2 -> 10.50742306 | F36: 0.021 | G36: 0.6 | H36: =F36*(1-G36) -> 0.0084 | I36: 1 | J36: 2000 | K36: =I36*J36*0.95 -> 1900 | L36: 0.25 | M36: =1+E36*(((F36+H36)/K36)+(L36*L36)*((F36*F36)+(H36*H36)))/((F36-H36)^2) -> 4.140193564 | N36: 5
A39: INCREASE K
A40: 0.95 | B40: 0.8 | C40: =NORMSINV(1-(0.5*(1-A40))) -> 1.959963985 | D40: =NORMSINV(B40) -> 0.8416212336 | E40: =(C40+D40)^2 -> 7.848879734 | F40: 0.01 | G40: 0.6 | H40: =F40*(1-G40) -> 0.004 | I40: 1 | J40: 2000 | K40: =I40*J40*0.95 -> 1900 | L40: 0.3 | M40: =1+E40*(((F40+H40)/K40)+(L40*L40)*((F40*F40)+(H40*H40)))/((F40-H40)^2) -> 4.882670975 | N40: =INT(M40)+1 -> 5
A41: 0.95 | B41: 0.8 | C41: =NORMSINV(1-(0.5*(1-A41))) -> 1.959963985 | D41: =NORMSINV(B41) -> 0.8416212336 | E41: =(C41+D41)^2 -> 7.848879734 | F41: 0.02 | G41: 0.6 | H41: =F41*(1-G41) -> 0.008 | I41: 1 | J41: 2000 | K41: =I41*J41*0.95 -> 1900 | L41: 0.3 | M41: =1+E41*(((F41+H41)/K41)+(L41*L41)*((F41*F41)+(H41*H41)))/((F41-H41)^2) -> 4.079423049 | N41: =INT(M41)+1 -> 5
A42: 0.95 | B42: 0.8 | C42: =NORMSINV(1-(0.5*(1-A42))) -> 1.959963985 | D42: =NORMSINV(B42) -> 0.8416212336 | E42: =(C42+D42)^2 -> 7.848879734 | F42: 0.04 | G42: 0.6 | H42: =F42*(1-G42) -> 0.016 | I42: 1 | J42: 2000 | K42: =I42*J42*0.95 -> 1900 | L42: 0.3 | M42: =1+E42*(((F42+H42)/K42)+(L42*L42)*((F42*F42)+(H42*H42)))/((F42-H42)^2) -> 3.677799086 | N42: 4
A44: 0.95 | B44: 0.9 | C44: =NORMSINV(1-(0.5*(1-A44))) -> 1.959963985 | D44: =NORMSINV(B44) -> 1.281551566 | E44: =(C44+D44)^2 -> 10.50742306 | F44: 0.01 | G44: 0.6 | H44: =F44*(1-G44) -> 0.004 | I44: 1 | J44: 2000 | K44: =I44*J44*0.95 -> 1900 | L44: 0.3 | M44: =1+E44*(((F44+H44)/K44)+(L44*L44)*((F44*F44)+(H44*H44)))/((F44-H44)^2) -> 6.197794835 | N44: 7
A45: 0.95 | B45: 0.9 | C45: =NORMSINV(1-(0.5*(1-A45))) -> 1.959963985 | D45: =NORMSINV(B45) -> 1.281551566 | E45: =(C45+D45)^2 -> 10.50742306 | F45: 0.02 | G45: 0.6 | H45: =F45*(1-G45) -> 0.008 | I45: 1 | J45: 2000 | K45: =I45*J45*0.95 -> 1900 | L45: 0.3 | M45: =1+E45*(((F45+H45)/K45)+(L45*L45)*((F45*F45)+(H45*H45)))/((F45-H45)^2) -> 5.122473761 | N45: 6
A46: 0.95 | B46: 0.9 | C46: =NORMSINV(1-(0.5*(1-A46))) -> 1.959963985 | D46: =NORMSINV(B46) -> 1.281551566 | E46: =(C46+D46)^2 -> 10.50742306 | F46: 0.04 | G46: 0.6 | H46: =F46*(1-G46) -> 0.016 | I46: 1 | J46: 2000 | K46: =I46*J46*0.95 -> 1900 | L46: 0.3 | M46: =1+E46*(((F46+H46)/K46)+(L46*L46)*((F46*F46)+(H46*H46)))/((F46-H46)^2) -> 4.584813225 | N46: 5
A48: 0.95 | B48: 0.8 | C48: =NORMSINV(1-(0.5*(1-A48))) -> 1.959963985 | D48: =NORMSINV(B48) -> 0.8416212336 | E48: =(C48+D48)^2 -> 7.848879734 | F48: 0.009 | G48: 0.6 | H48: =F48*(1-G48) -> 0.0036 | I48: 1 | J48: 2000 | K48: =I48*J48*0.95 -> 1900 | L48: 0.3 | M48: =1+E48*(((F48+H48)/K48)+(L48*L48)*((F48*F48)+(H48*H48)))/((F48-H48)^2) -> 5.061170514 | N48: =INT(M48)+1 -> 6
A49: 0.95 | B49: 0.8 | C49: =NORMSINV(1-(0.5*(1-A49))) -> 1.959963985 | D49: =NORMSINV(B49) -> 0.8416212336 | E49: =(C49+D49)^2 -> 7.848879734 | F49: 0.018 | G49: 0.6 | H49: =F49*(1-G49) -> 0.0072 | I49: 1 | J49: 2000 | K49: =I49*J49*0.95 -> 1900 | L49: 0.3 | M49: =1+E49*(((F49+H49)/K49)+(L49*L49)*((F49*F49)+(H49*H49)))/((F49-H49)^2) -> 4.168672819 | N49: =INT(M49)+1 -> 5
A50: 0.95 | B50: 0.8 | C50: =NORMSINV(1-(0.5*(1-A50))) -> 1.959963985 | D50: =NORMSINV(B50) -> 0.8416212336 | E50: =(C50+D50)^2 -> 7.848879734 | F50: 0.027 | G50: 0.6 | H50: =F50*(1-G50) -> 0.0108 | I50: 1 | J50: 2000 | K50: =I50*J50*0.95 -> 1900 | L50: 0.3 | M50: =1+E50*(((F50+H50)/K50)+(L50*L50)*((F50*F50)+(H50*H50)))/((F50-H50)^2) -> 3.871173587 | N50: 4
A52: 0.95 | B52: 0.9 | C52: =NORMSINV(1-(0.5*(1-A52))) -> 1.959963985 | D52: =NORMSINV(B52) -> 1.281551566 | E52: =(C52+D52)^2 -> 10.50742306 | F52: 0.009 | G52: 0.6 | H52: =F52*(1-G52) -> 0.0036 | I52: 1 | J52: 2000 | K52: =I52*J52*0.95 -> 1900 | L52: 0.3 | M52: =1+E52*(((F52+H52)/K52)+(L52*L52)*((F52*F52)+(H52*H52)))/((F52-H52)^2) -> 6.436755073 | N52: 7
A53: 0.95 | B53: 0.9 | C53: =NORMSINV(1-(0.5*(1-A53))) -> 1.959963985 | D53: =NORMSINV(B53) -> 1.281551566 | E53: =(C53+D53)^2 -> 10.50742306 | F53: 0.018 | G53: 0.6 | H53: =F53*(1-G53) -> 0.0072 | I53: 1 | J53: 2000 | K53: =I53*J53*0.95 -> 1900 | L53: 0.3 | M53: =1+E53*(((F53+H53)/K53)+(L53*L53)*((F53*F53)+(H53*H53)))/((F53-H53)^2) -> 5.241953881 | N53: 6
A54: 0.95 | B54: 0.9 | C54: =NORMSINV(1-(0.5*(1-A54))) -> 1.959963985 | D54: =NORMSINV(B54) -> 1.281551566 | E54: =(C54+D54)^2 -> 10.50742306 | F54: 0.027 | G54: 0.6 | H54: =F54*(1-G54) -> 0.0108 | I54: 1 | J54: 2000 | K54: =I54*J54*0.95 -> 1900 | L54: 0.3 | M54: =1+E54*(((F54+H54)/K54)+(L54*L54)*((F54*F54)+(H54*H54)))/((F54-H54)^2) -> 4.843686816 | N54: 5
A56: 0.95 | B56: 0.8 | C56: =NORMSINV(1-(0.5*(1-A56))) -> 1.959963985 | D56: =NORMSINV(B56) -> 0.8416212336 | E56: =(C56+D56)^2 -> 7.848879734 | F56: 0.007 | G56: 0.6 | H56: =F56*(1-G56) -> 0.0028 | I56: 1 | J56: 2000 | K56: =I56*J56*0.95 -> 1900 | L56: 0.3 | M56: =1+E56*(((F56+H56)/K56)+(L56*L56)*((F56*F56)+(H56*H56)))/((F56-H56)^2) -> 5.571169197 | N56: =INT(M56)+1 -> 6
A57: 0.95 | B57: 0.8 | C57: =NORMSINV(1-(0.5*(1-A57))) -> 1.959963985 | D57: =NORMSINV(B57) -> 0.8416212336 | E57: =(C57+D57)^2 -> 7.848879734 | F57: 0.014 | G57: 0.6 | H57: =F57*(1-G57) -> 0.0056 | I57: 1 | J57: 2000 | K57: =I57*J57*0.95 -> 1900 | L57: 0.3 | M57: =1+E57*(((F57+H57)/K57)+(L57*L57)*((F57*F57)+(H57*H57)))/((F57-H57)^2) -> 4.42367216 | N57: =INT(M57)+1 -> 5
A58: 0.95 | B58: 0.8 | C58: =NORMSINV(1-(0.5*(1-A58))) -> 1.959963985 | D58: =NORMSINV(B58) -> 0.8416212336 | E58: =(C58+D58)^2 -> 7.848879734 | F58: 0.021 | G58: 0.6 | H58: =F58*(1-G58) -> 0.0084 | I58: 1 | J58: 2000 | K58: =I58*J58*0.95 -> 1900 | L58: 0.3 | M58: =1+E58*(((F58+H58)/K58)+(L58*L58)*((F58*F58)+(H58*H58)))/((F58-H58)^2) -> 4.041173148 | N58: 5
A60: 0.95 | B60: 0.85 | C60: =NORMSINV(1-(0.5*(1-A60))) -> 1.959963985 | D60: =NORMSINV(B60) -> 1.036433389 | E60: =(C60+D60)^2 -> 8.978397223 | F60: 0.007 | G60: 0.6 | H60: =F60*(1-G60) -> 0.0028 | I60: 1 | J60: 2000 | K60: =I60*J60*0.95 -> 1900 | L60: 0.3 | M60: =1+E60*(((F60+H60)/K60)+(L60*L60)*((F60*F60)+(H60*H60)))/((F60-H60)^2) -> 6.228997541 | N60: 7
A61: 0.95 | B61: 0.9 | C61: =NORMSINV(1-(0.5*(1-A61))) -> 1.959963985 | D61: =NORMSINV(B61) -> 1.281551566 | E61: =(C61+D61)^2 -> 10.50742306 | F61: 0.014 | G61: 0.6 | H61: =F61*(1-G61) -> 0.0056 | I61: 1 | J61: 2000 | K61: =I61*J61*0.95 -> 1900 | L61: 0.3 | M61: =1+E61*(((F61+H61)/K61)+(L61*L61)*((F61*F61)+(H61*H61)))/((F61-H61)^2) -> 5.58332565 | N61: 6
A62: 0.95 | B62: 0.9 | C62: =NORMSINV(1-(0.5*(1-A62))) -> 1.959963985 | D62: =NORMSINV(B62) -> 1.281551566 | E62: =(C62+D62)^2 -> 10.50742306 | F62: 0.021 | G62: 0.6 | H62: =F62*(1-G62) -> 0.0084 | I62: 1 | J62: 2000 | K62: =I62*J62*0.95 -> 1900 | L62: 0.3 | M62: =1+E62*(((F62+H62)/K62)+(L62*L62)*((F62*F62)+(H62*H62)))/((F62-H62)^2) -> 5.071267996 | N62: 6
A65: 0.95 | B65: 0.8 | C65: =NORMSINV(1-(0.5*(1-A65))) -> 1.959963985 | D65: =NORMSINV(B65) -> 0.8416212336 | E65: =(C65+D65)^2 -> 7.848879734 | F65: 0.01 | G65: 0.6 | H65: =F65*(1-G65) -> 0.004 | I65: 1 | J65: 2000 | K65: =I65*J65*0.95 -> 1900 | L65: 0.35 | M65: =1+E65*(((F65+H65)/K65)+(L65*L65)*((F65*F65)+(H65*H65)))/((F65-H65)^2) -> 5.704623103 | N65: =INT(M65)+1 -> 6
A66: 0.95 | B66: 0.8 | C66: =NORMSINV(1-(0.5*(1-A66))) -> 1.959963985 | D66: =NORMSINV(B66) -> 0.8416212336 | E66: =(C66+D66)^2 -> 7.848879734 | F66: 0.02 | G66: 0.6 | H66: =F66*(1-G66) -> 0.008 | I66: 1 | J66: 2000 | K66: =I66*J66*0.95 -> 1900 | L66: 0.35 | M66: =1+E66*(((F66+H66)/K66)+(L66*L66)*((F66*F66)+(H66*H66)))/((F66-H66)^2) -> 4.901375177 | N66: =INT(M66)+1 -> 5
A67: 0.95 | B67: 0.8 | C67: =NORMSINV(1-(0.5*(1-A67))) -> 1.959963985 | D67: =NORMSINV(B67) -> 0.8416212336 | E67: =(C67+D67)^2 -> 7.848879734 | F67: 0.04 | G67: 0.6 | H67: =F67*(1-G67) -> 0.016 | I67: 1 | J67: 2000 | K67: =I67*J67*0.95 -> 1900 | L67: 0.35 | M67: =1+E67*(((F67+H67)/K67)+(L67*L67)*((F67*F67)+(H67*H67)))/((F67-H67)^2) -> 4.499751214 | N67: 5
A69: 0.95 | B69: 0.9 | C69: =NORMSINV(1-(0.5*(1-A69))) -> 1.959963985 | D69: =NORMSINV(B69) -> 1.281551566 | E69: =(C69+D69)^2 -> 10.50742306 | F69: 0.01 | G69: 0.6 | H69: =F69*(1-G69) -> 0.004 | I69: 1 | J69: 2000 | K69: =I69*J69*0.95 -> 1900 | L69: 0.35 | M69: =1+E69*(((F69+H69)/K69)+(L69*L69)*((F69*F69)+(H69*H69)))/((F69-H69)^2) -> 7.298155528 | N69: 8
A70: 0.95 | B70: 0.9 | C70: =NORMSINV(1-(0.5*(1-A70))) -> 1.959963985 | D70: =NORMSINV(B70) -> 1.281551566 | E70: =(C70+D70)^2 -> 10.50742306 | F70: 0.02 | G70: 0.6 | H70: =F70*(1-G70) -> 0.008 | I70: 1 | J70: 2000 | K70: =I70*J70*0.95 -> 1900 | L70: 0.35 | M70: =1+E70*(((F70+H70)/K70)+(L70*L70)*((F70*F70)+(H70*H70)))/((F70-H70)^2) -> 6.222834454 | N70: 7
A71: 0.95 | B71: 0.9 | C71: =NORMSINV(1-(0.5*(1-A71))) -> 1.959963985 | D71: =NORMSINV(B71) -> 1.281551566 | E71: =(C71+D71)^2 -> 10.50742306 | F71: 0.04 | G71: 0.6 | H71: =F71*(1-G71) -> 0.016 | I71: 1 | J71: 2000 | K71: =I71*J71*0.95 -> 1900 | L71: 0.35 | M71: =1+E71*(((F71+H71)/K71)+(L71*L71)*((F71*F71)+(H71*H71)))/((F71-H71)^2) -> 5.685173917 | N71: 6
A73: 0.95 | B73: 0.8 | C73: =NORMSINV(1-(0.5*(1-A73))) -> 1.959963985 | D73: =NORMSINV(B73) -> 0.8416212336 | E73: =(C73+D73)^2 -> 7.848879734 | F73: 0.009 | G73: 0.6 | H73: =F73*(1-G73) -> 0.0036 | I73: 1 | J73: 2000 | K73: =I73*J73*0.95 -> 1900 | L73: 0.35 | M73: =1+E73*(((F73+H73)/K73)+(L73*L73)*((F73*F73)+(H73*H73)))/((F73-H73)^2) -> 5.883122642 | N73: =INT(M73)+1 -> 6
A74: 0.95 | B74: 0.8 | C74: =NORMSINV(1-(0.5*(1-A74))) -> 1.959963985 | D74: =NORMSINV(B74) -> 0.8416212336 | E74: =(C74+D74)^2 -> 7.848879734 | F74: 0.018 | G74: 0.6 | H74: =F74*(1-G74) -> 0.0072 | I74: 1 | J74: 2000 | K74: =I74*J74*0.95 -> 1900 | L74: 0.35 | M74: =1+E74*(((F74+H74)/K74)+(L74*L74)*((F74*F74)+(H74*H74)))/((F74-H74)^2) -> 4.990624946 | N74: =INT(M74)+1 -> 5
A75: 0.95 | B75: 0.8 | C75: =NORMSINV(1-(0.5*(1-A75))) -> 1.959963985 | D75: =NORMSINV(B75) -> 0.8416212336 | E75: =(C75+D75)^2 -> 7.848879734 | F75: 0.027 | G75: 0.6 | H75: =F75*(1-G75) -> 0.0108 | I75: 1 | J75: 2000 | K75: =I75*J75*0.95 -> 1900 | L75: 0.35 | M75: =1+E75*(((F75+H75)/K75)+(L75*L75)*((F75*F75)+(H75*H75)))/((F75-H75)^2) -> 4.693125714 | N75: 5
A77: 0.95 | B77: 0.9 | C77: =NORMSINV(1-(0.5*(1-A77))) -> 1.959963985 | D77: =NORMSINV(B77) -> 1.281551566 | E77: =(C77+D77)^2 -> 10.50742306 | F77: 0.009 | G77: 0.6 | H77: =F77*(1-G77) -> 0.0036 | I77: 1 | J77: 2000 | K77: =I77*J77*0.95 -> 1900 | L77: 0.35 | M77: =1+E77*(((F77+H77)/K77)+(L77*L77)*((F77*F77)+(H77*H77)))/((F77-H77)^2) -> 7.537115766 | N77: 8
A78: 0.95 | B78: 0.9 | C78: =NORMSINV(1-(0.5*(1-A78))) -> 1.959963985 | D78: =NORMSINV(B78) -> 1.281551566 | E78: =(C78+D78)^2 -> 10.50742306 | F78: 0.018 | G78: 0.6 | H78: =F78*(1-G78) -> 0.0072 | I78: 1 | J78: 2000 | K78: =I78*J78*0.95 -> 1900 | L78: 0.35 | M78: =1+E78*(((F78+H78)/K78)+(L78*L78)*((F78*F78)+(H78*H78)))/((F78-H78)^2) -> 6.342314573 | N78: 7
A79: 0.95 | B79: 0.9 | C79: =NORMSINV(1-(0.5*(1-A79))) -> 1.959963985 | D79: =NORMSINV(B79) -> 1.281551566 | E79: =(C79+D79)^2 -> 10.50742306 | F79: 0.027 | G79: 0.6 | H79: =F79*(1-G79) -> 0.0108 | I79: 1 | J79: 2000 | K79: =I79*J79*0.95 -> 1900 | L79: 0.35 | M79: =1+E79*(((F79+H79)/K79)+(L79*L79)*((F79*F79)+(H79*H79)))/((F79-H79)^2) -> 5.944047509 | N79: 6
A81: 0.95 | B81: 0.8 | C81: =NORMSINV(1-(0.5*(1-A81))) -> 1.959963985 | D81: =NORMSINV(B81) -> 0.8416212336 | E81: =(C81+D81)^2 -> 7.848879734 | F81: 0.007 | G81: 0.6 | H81: =F81*(1-G81) -> 0.0028 | I81: 1 | J81: 2000 | K81: =I81*J81*0.95 -> 1900 | L81: 0.35 | M81: =1+E81*(((F81+H81)/K81)+(L81*L81)*((F81*F81)+(H81*H81)))/((F81-H81)^2) -> 6.393121325 | N81: =INT(M81)+1 -> 7
A82: 0.95 | B82: 0.8 | C82: =NORMSINV(1-(0.5*(1-A82))) -> 1.959963985 | D82: =NORMSINV(B82) -> 0.8416212336 | E82: =(C82+D82)^2 -> 7.848879734 | F82: 0.014 | G82: 0.6 | H82: =F82*(1-G82) -> 0.0056 | I82: 1 | J82: 2000 | K82: =I82*J82*0.95 -> 1900 | L82: 0.35 | M82: =1+E82*(((F82+H82)/K82)+(L82*L82)*((F82*F82)+(H82*H82)))/((F82-H82)^2) -> 5.245624288 | N82: =INT(M82)+1 -> 6
A83: 0.95 | B83: 0.8 | C83: =NORMSINV(1-(0.5*(1-A83))) -> 1.959963985 | D83: =NORMSINV(B83) -> 0.8416212336 | E83: =(C83+D83)^2 -> 7.848879734 | F83: 0.021 | G83: 0.6 | H83: =F83*(1-G83) -> 0.0084 | I83: 1 | J83: 2000 | K83: =I83*J83*0.95 -> 1900 | L83: 0.35 | M83: =1+E83*(((F83+H83)/K83)+(L83*L83)*((F83*F83)+(H83*H83)))/((F83-H83)^2) -> 4.863125275 | N83: 5
A85: 0.95 | B85: 0.9 | C85: =NORMSINV(1-(0.5*(1-A85))) -> 1.959963985 | D85: =NORMSINV(B85) -> 1.281551566 | E85: =(C85+D85)^2 -> 10.50742306 | F85: 0.007 | G85: 0.6 | H85: =F85*(1-G85) -> 0.0028 | I85: 1 | J85: 2000 | K85: =I85*J85*0.95 -> 1900 | L85: 0.35 | M85: =1+E85*(((F85+H85)/K85)+(L85*L85)*((F85*F85)+(H85*H85)))/((F85-H85)^2) -> 8.219859305 | N85: 9
A86: 0.95 | B86: 0.9 | C86: =NORMSINV(1-(0.5*(1-A86))) -> 1.959963985 | D86: =NORMSINV(B86) -> 1.281551566 | E86: =(C86+D86)^2 -> 10.50742306 | F86: 0.014 | G86: 0.6 | H86: =F86*(1-G86) -> 0.0056 | I86: 1 | J86: 2000 | K86: =I86*J86*0.95 -> 1900 | L86: 0.35 | M86: =1+E86*(((F86+H86)/K86)+(L86*L86)*((F86*F86)+(H86*H86)))/((F86-H86)^2) -> 6.683686343 | N86: 7
A87: 0.95 | B87: 0.9 | C87: =NORMSINV(1-(0.5*(1-A87))) -> 1.959963985 | D87: =NORMSINV(B87) -> 1.281551566 | E87: =(C87+D87)^2 -> 10.50742306 | F87: 0.021 | G87: 0.6 | H87: =F87*(1-G87) -> 0.0084 | I87: 1 | J87: 2000 | K87: =I87*J87*0.95 -> 1900 | L87: 0.35 | M87: =1+E87*(((F87+H87)/K87)+(L87*L87)*((F87*F87)+(H87*H87)))/((F87-H87)^2) -> 6.171628689 | N87: 7

Sheet Mask1
A2: CRVS-VA Sample Size Calculator Tool v 1.0
B6: Country | C6: Spain
B8: Subnational (optional)
B10: Year | C10: 2010
A12: Please select how do you want to use this tool:
B14: I want to estimate the number of clusters to be sampled based on an acceptable uncertainty range for detecting significant CSMF changes | D14: Uncertainty range for the cause of death closest to 1.0% CSMF (+/-) | F14: 0.25 | K14: Name of the cluster unit | L14: Cluster population size | M14: Crude Death Rate (CDR) per 1,000 | N14: Expected annual number of deaths
N15: =IFERROR(M15*L15/1000,"") -> 0 | O15: 1 | P15: =IFERROR(INDEX($N$15:$N$5014,MATCH(ROW()-ROW($O$14),$O$15:$O$5014,0)),"") -> 0
B16: I want to estimate the uncertainty range for detecting significant CSMF changes based on the number of clusters I wish to sample | D16: Number of Clusters | F16: 178 | N16: =IFERROR(M16*L16/1000,"") -> 0 | O16: =IF(N16=0,"",MAX(O$15:O15)+1) ->  | P16: =IFERROR(INDEX($N$15:$N$5014,MATCH(ROW()-ROW($O$14),$O$15:$O$5014,0)),"") -> 
N17: 0 | O17: =IF(N17=0,"",MAX(O$15:O16)+1) -> 
B18: (a) Do you want to calculate your sample size in order to be able to disaggregate your results by male and female? | C18: Yes | N18: 0 | O18: =IF(N18=0,"",MAX(O$15:O17)+1) -> 
N19: 0 | O19: =IF(N19=0,"",MAX(O$15:O18)+1) -> 
B20: (b) Do you know the population size of each eligible clusters? | C20: No | N20: 0 | O20: =IF(N20=0,"",MAX(O$15:O19)+1) -> 
N21: 0 | O21: =IF(N21=0,"",MAX(O$15:O20)+1) -> 
A22: Assumptions in your sampling strategy | N22: 0 | O22: =IF(N22=0,"",MAX(O$15:O21)+1) -> 
N23: 0 | O23: =IF(N23=0,"",MAX(O$15:O22)+1) -> 
B24: Power | C24: 0.8 | N24: 0 | O24: =IF(N24=0,"",MAX(O$15:O23)+1) -> 
N25: 0 | O25: =IF(N25=0,"",MAX(O$15:O24)+1) -> 
B26: Significance Level | C26: 0.05 | N26: 0 | O26: =IF(N26=0,"",MAX(O$15:O25)+1) -> 
N27: 0 | O27: =IF(N27=0,"",MAX(O$15:O26)+1) -> 
B28: Mean population per cluster | C28: 18000 | N28: 0 | O28: =IF(N28=0,"",MAX(O$15:O27)+1) -> 
N29: 0 | O29: =IF(N29=0,"",MAX(O$15:O28)+1) -> 
B30: Crude Death Rate (CDR) per 1,000 | C30: 6.5 | D30: Expected annual mean number of deaths per cluster based on national CDR | F30: =cluster_pop*CDR/1000 -> 117 | N30: 0 | O30: =IF(N30=0,"",MAX(O$15:O29)+1) -> 
N31: 0 | O31: =IF(N31=0,"",MAX(O$15:O30)+1) -> 
B32: Expected annual mean number of deaths per cluster | C32: =IF(C20="Yes",IFERROR(HARMEAN(HarmonicMeanRange),0),F30) -> 117 | N32: 0 | O32: =IF(N32=0,"",MAX(O$15:O31)+1) -> 
N33: 0 | O33: =IF(N33=0,"",MAX(O$15:O32)+1) -> 
B34: k | C34: 0.25 | N34: 0 | O34: =IF(N34=0,"",MAX(O$15:O33)+1) -> 
N35: 0 | O35: =IF(N35=0,"",MAX(O$15:O34)+1) -> 
B36: MIS | C36: =IF(C20="Yes", 1,1.5) -> 1.5 | N36: 0 | O36: =IF(N36=0,"",MAX(O$15:O35)+1) -> 
N37: 0 | O37: =IF(N37=0,"",MAX(O$15:O36)+1) -> 
B38: Number of years to aggregate for trend (Years of follow up) | C38: 1 | N38: 0 | O38: =IF(N38=0,"",MAX(O$15:O37)+1) -> 
N39: 0 | O39: =IF(N39=0,"",MAX(O$15:O38)+1) -> 
B40: Percentage of all deaths with a MCCD or occuring within health facilities | C40: 0.3 | N40: 0 | O40: =IF(N40=0,"",MAX(O$15:O39)+1) -> 
N41: 0 | O41: =IF(N41=0,"",MAX(O$15:O40)+1) -> 
B42: Under-notification and non-response (%) | C42: 0.1 | N42: 0 | O42: =IF(N42=0,"",MAX(O$15:O41)+1) -> 
N43: 0 | O43: =IF(N43=0,"",MAX(O$15:O42)+1) -> 
N44: 0 | O44: =IF(N44=0,"",MAX(O$15:O43)+1) -> 
A45: Results | N45: 0 | O45: =IF(N45=0,"",MAX(O$15:O44)+1) -> 
F46: CSMF UNCERTAINTY RANGES | N46: 0 | O46: =IF(N46=0,"",MAX(O$15:O45)+1) -> 
E47: CSMF level | F47: Uncertainty (% of CSMF) | G47: Lower bound | H47: Upper bound | N47: 0 | O47: =IF(N47=0,"",MAX(O$15:O46)+1) -> 
E48: =HavePREC_prop_matched_hayes!G5 -> 0.25 | F48: =IF(Lists!$E$2="HavePREC",HavePREC_prop_matched_hayes!H5,HaveCLUSTER_prop_matched_hayes!H5) -> 0.1585028426 | G48: =IF((E48-E48*F48)<0,0,E48-E48*F48) -> 0.2103742894 | H48: =E48+E48*F48 -> 0.2896257106 | N48: 0 | O48: =IF(N48=0,"",MAX(O$15:O47)+1) -> 
E49: =HavePREC_prop_matched_hayes!G6 -> 0.2 | F49: =IF(Lists!$E$2="HavePREC",HavePREC_prop_matched_hayes!H6,HaveCLUSTER_prop_matched_hayes!H6) -> 0.168349341 | G49: =IF((E49-E49*F49)<0,0,E49-E49*F49) -> 0.1663301318 | H49: =E49+E49*F49 -> 0.2336698682 | N49: 0 | O49: =IF(N49=0,"",MAX(O$15:O48)+1) -> 
B50: Number of clusters required | C50: =INT(IF(Lists!E2="HavePREC",HavePREC_prop_matched_hayes!O4,HaveCLUSTER_prop_matched_hayes!O4)) -> 178 | E50: =HavePREC_prop_matched_hayes!G7 -> 0.15 | F50: =IF(Lists!$E$2="HavePREC",HavePREC_prop_matched_hayes!H7,HaveCLUSTER_prop_matched_hayes!H7) -> 0.1834593958 | G50: 0.1224810906 | H50: 0.1775189094 | N50: 0 | O50: =IF(N50=0,"",MAX(O$15:O49)+1) -> 
E51: =HavePREC_prop_matched_hayes!G8 -> 0.125 | F51: =IF(Lists!$E$2="HavePREC",HavePREC_prop_matched_hayes!H8,HaveCLUSTER_prop_matched_hayes!H8) -> 0.1946000343 | G51: 0.1006749957 | H51: 0.1493250043 | N51: 0 | O51: =IF(N51=0,"",MAX(O$15:O50)+1) -> 
B52: Estimated total population in the sample | C52: =cluster_pop*Mask1!C50 -> 3204000 | E52: =HavePREC_prop_matched_hayes!G9 -> 0.1 | F52: =IF(Lists!$E$2="HavePREC",HavePREC_prop_matched_hayes!H9,HaveCLUSTER_prop_matched_hayes!H9) -> 0.2100551718 | G52: 0.07899448282 | H52: 0.1210055172 | N52: 0 | O52: =IF(N52=0,"",MAX(O$15:O51)+1) -> 
E53: =HavePREC_prop_matched_hayes!G10 -> 0.075 | F53: =IF(Lists!$E$2="HavePREC",HavePREC_prop_matched_hayes!H10,HaveCLUSTER_prop_matched_hayes!H10) -> 0.2332154862 | G53: 0.05750883854 | H53: 0.09249116146 | N53: 0 | O53: =IF(N53=0,"",MAX(O$15:O52)+1) -> 
B54: Estimated number of deaths in the sample per year | C54: =ROUNDUP(Expected_deaths*C50,0) -> 20826 | E54: =HavePREC_prop_matched_hayes!G11 -> 0.05 | F54: =IF(Lists!$E$2="HavePREC",HavePREC_prop_matched_hayes!H11,HaveCLUSTER_prop_matched_hayes!H11) -> 0.2727645571 | G54: 0.03636177214 | H54: 0.06363822786 | N54: 0 | O54: =IF(N54=0,"",MAX(O$15:O53)+1) -> 
E55: =HavePREC_prop_matched_hayes!G12 -> 0.03 | F55: =IF(Lists!$E$2="HavePREC",HavePREC_prop_matched_hayes!H12,HaveCLUSTER_prop_matched_hayes!H12) -> 0.335694008 | G55: 0.01992917976 | H55: 0.04007082024 | N55: 0 | O55: =IF(N55=0,"",MAX(O$15:O54)+1) -> 
B56: Estimated number of VAs needed per year | C56: =ROUNDUP(C54*(1-PriorMCCD)*(1-NonResponse),0) -> 13121 | E56: =HavePREC_prop_matched_hayes!G13 -> 0.02 | F56: =IF(Lists!$E$2="HavePREC",HavePREC_prop_matched_hayes!H13,HaveCLUSTER_prop_matched_hayes!H13) -> 0.3974306293 | G56: 0.01205138741 | H56: 0.02794861259 | N56: 0 | O56: =IF(N56=0,"",MAX(O$15:O55)+1) -> 
E57: =HavePREC_prop_matched_hayes!G14 -> 0.01 | F57: =IF(Lists!$E$2="HavePREC",HavePREC_prop_matched_hayes!H14,HaveCLUSTER_prop_matched_hayes!H14) -> 0.5302370093 | G57: 0.004697629907 | H57: 0.01530237009 | N57: 0 | O57: =IF(N57=0,"",MAX(O$15:O56)+1) -> 
N58: 0 | O58: =IF(N58=0,"",MAX(O$15:O57)+1) -> 
N59: 0 | O59: =IF(N59=0,"",MAX(O$15:O58)+1) -> 
B60: This tool has been developed by SwissTPH in collaboration with WHO, CDC, LSHTM, Vital Strategies and the University of Melbourne | N60: 0 | O60: =IF(N60=0,"",MAX(O$15:O59)+1) -> 
B61: For more information contact daniel.cobos@swisstph.ch | N61: 0 | O61: =IF(N61=0,"",MAX(O$15:O60)+1) -> 
N62: 0 | O62: =IF(N62=0,"",MAX(O$15:O61)+1) -> 
N63: 0 | O63: =IF(N63=0,"",MAX(O$15:O62)+1) -> 
N64: 0 | O64: =IF(N64=0,"",MAX(O$15:O63)+1) -> 
N65: 0 | O65: =IF(N65=0,"",MAX(O$15:O64)+1) -> 
N66: 0 | O66: =IF(N66=0,"",MAX(O$15:O65)+1) -> 
N67: 0 | O67: =IF(N67=0,"",MAX(O$15:O66)+1) -> 
N68: 0 | O68: =IF(N68=0,"",MAX(O$15:O67)+1) -> 
N69: 0 | O69: =IF(N69=0,"",MAX(O$15:O68)+1) -> 
N70: 0 | O70: =IF(N70=0,"",MAX(O$15:O69)+1) -> 
N71: 0 | O71: =IF(N71=0,"",MAX(O$15:O70)+1) -> 
N72: 0 | O72: =IF(N72=0,"",MAX(O$15:O71)+1) -> 
N73: 0 | O73: =IF(N73=0,"",MAX(O$15:O72)+1) -> 
N74: 0 | O74: =IF(N74=0,"",MAX(O$15:O73)+1) -> 
N75: 0 | O75: =IF(N75=0,"",MAX(O$15:O74)+1) -> 
N76: 0 | O76: =IF(N76=0,"",MAX(O$15:O75)+1) -> 
N77: 0 | O77: =IF(N77=0,"",MAX(O$15:O76)+1) -> 
N78: =IFERROR(M78*L78/1000,"") -> 0 | O78: =IF(N78=0,"",MAX(O$15:O77)+1) -> 
N79: 0 | O79: =IF(N79=0,"",MAX(O$15:O78)+1) -> 
N80: 0 | O80: =IF(N80=0,"",MAX(O$15:O79)+1) ->  | P80: =IFERROR(INDEX($N$15:$N$5014,MATCH(ROW()-ROW($O$14),$O$15:$O$5014,0)),"") -> 
N81: 0 | O81: =IF(N81=0,"",MAX(O$15:O80)+1) -> 
N82: 0 | O82: =IF(N82=0,"",MAX(O$15:O81)+1) -> 
N83: 0 | O83: =IF(N83=0,"",MAX(O$15:O82)+1) -> 
N84: 0 | O84: =IF(N84=0,"",MAX(O$15:O83)+1) -> 
N85: 0 | O85: =IF(N85=0,"",MAX(O$15:O84)+1) -> 
N86: 0 | O86: =IF(N86=0,"",MAX(O$15:O85)+1) -> 
N87: 0 | O87: =IF(N87=0,"",MAX(O$15:O86)+1) -> 
N88: 0 | O88: =IF(N88=0,"",MAX(O$15:O87)+1) -> 
N89: 0 | O89: =IF(N89=0,"",MAX(O$15:O88)+1) -> 
N90: 0 | O90: =IF(N90=0,"",MAX(O$15:O89)+1) -> 
N91: 0 | O91: =IF(N91=0,"",MAX(O$15:O90)+1) -> 
N92: 0 | O92: =IF(N92=0,"",MAX(O$15:O91)+1) -> 
N93: 0 | O93: =IF(N93=0,"",MAX(O$15:O92)+1) -> 
N94: 0 | O94: =IF(N94=0,"",MAX(O$15:O93)+1) -> 
N95: 0 | O95: =IF(N95=0,"",MAX(O$15:O94)+1) -> 
N96: 0 | O96: =IF(N96=0,"",MAX(O$15:O95)+1) -> 
N97: 0 | O97: =IF(N97=0,"",MAX(O$15:O96)+1) -> 
N98: 0 | O98: =IF(N98=0,"",MAX(O$15:O97)+1) -> 
N99: 0 | O99: =IF(N99=0,"",MAX(O$15:O98)+1) -> 
N100: 0 | O100: =IF(N100=0,"",MAX(O$15:O99)+1) -> 
N101: 0 | O101: =IF(N101=0,"",MAX(O$15:O100)+1) -> 
N102: 0 | O102: =IF(N102=0,"",MAX(O$15:O101)+1) -> 
N103: 0 | O103: =IF(N103=0,"",MAX(O$15:O102)+1) -> 
N104: 0 | O104: =IF(N104=0,"",MAX(O$15:O103)+1) -> 
N105: 0 | O105: =IF(N105=0,"",MAX(O$15:O104)+1) -> 
N106: 0 | O106: =IF(N106=0,"",MAX(O$15:O105)+1) -> 
N107: 0 | O107: =IF(N107=0,"",MAX(O$15:O106)+1) -> 
N108: 0 | O108: =IF(N108=0,"",MAX(O$15:O107)+1) -> 
N109: 0 | O109: =IF(N109=0,"",MAX(O$15:O108)+1) -> 
N110: 0 | O110: =IF(N110=0,"",MAX(O$15:O109)+1) -> 
N111: 0 | O111: =IF(N111=0,"",MAX(O$15:O110)+1) -> 
N112: 0 | O112: =IF(N112=0,"",MAX(O$15:O111)+1) -> 
N113: 0 | O113: =IF(N113=0,"",MAX(O$15:O112)+1) -> 
N114: 0 | O114: =IF(N114=0,"",MAX(O$15:O113)+1) -> 
N115: 0 | O115: =IF(N115=0,"",MAX(O$15:O114)+1) -> 
N116: 0 | O116: =IF(N116=0,"",MAX(O$15:O115)+1) -> 
N117: 0 | O117: =IF(N117=0,"",MAX(O$15:O116)+1) -> 
N118: 0 | O118: =IF(N118=0,"",MAX(O$15:O117)+1) -> 
N119: 0 | O119: =IF(N119=0,"",MAX(O$15:O118)+1) -> 
N120: 0 | O120: =IF(N120=0,"",MAX(O$15:O119)+1) -> 
N121: 0 | O121: =IF(N121=0,"",MAX(O$15:O120)+1) -> 
N122: 0 | O122: =IF(N122=0,"",MAX(O$15:O121)+1) -> 
N123: 0 | O123: =IF(N123=0,"",MAX(O$15:O122)+1) -> 
N124: 0 | O124: =IF(N124=0,"",MAX(O$15:O123)+1) -> 
N125: 0 | O125: =IF(N125=0,"",MAX(O$15:O124)+1) -> 
N126: 0 | O126: =IF(N126=0,"",MAX(O$15:O125)+1) -> 
N127: 0 | O127: =IF(N127=0,"",MAX(O$15:O126)+1) -> 
N128: 0 | O128: =IF(N128=0,"",MAX(O$15:O127)+1) -> 
N129: 0 | O129: =IF(N129=0,"",MAX(O$15:O128)+1) -> 
N130: 0 | O130: =IF(N130=0,"",MAX(O$15:O129)+1) -> 
N131: 0 | O131: =IF(N131=0,"",MAX(O$15:O130)+1) -> 
N132: 0 | O132: =IF(N132=0,"",MAX(O$15:O131)+1) -> 
N133: 0 | O133: =IF(N133=0,"",MAX(O$15:O132)+1) -> 
N134: 0 | O134: =IF(N134=0,"",MAX(O$15:O133)+1) -> 
N135: 0 | O135: =IF(N135=0,"",MAX(O$15:O134)+1) -> 
N136: 0 | O136: =IF(N136=0,"",MAX(O$15:O135)+1) -> 
N137: 0 | O137: =IF(N137=0,"",MAX(O$15:O136)+1) -> 
N138: 0 | O138: =IF(N138=0,"",MAX(O$15:O137)+1) -> 
N139: 0 | O139: =IF(N139=0,"",MAX(O$15:O138)+1) -> 
N140: 0 | O140: =IF(N140=0,"",MAX(O$15:O139)+1) -> 
N141: 0 | O141: =IF(N141=0,"",MAX(O$15:O140)+1) -> 
N142: =IFERROR(M142*L142/1000,"") -> 0 | O142: =IF(N142=0,"",MAX(O$15:O141)+1) -> 
N143: 0 | O143: =IF(N143=0,"",MAX(O$15:O142)+1) -> 
N144: 0 | O144: =IF(N144=0,"",MAX(O$15:O143)+1) ->  | P144: =IFERROR(INDEX($N$15:$N$5014,MATCH(ROW()-ROW($O$14),$O$15:$O$5014,0)),"") -> 
N145: 0 | O145: =IF(N145=0,"",MAX(O$15:O144)+1) -> 
N146: 0 | O146: =IF(N146=0,"",MAX(O$15:O145)+1) -> 
N147: 0 | O147: =IF(N147=0,"",MAX(O$15:O146)+1) -> 
N148: 0 | O148: =IF(N148=0,"",MAX(O$15:O147)+1) -> 
N149: 0 | O149: =IF(N149=0,"",MAX(O$15:O148)+1) -> 
N150: 0 | O150: =IF(N150=0,"",MAX(O$15:O149)+1) -> 
N151: 0 | O151: =IF(N151=0,"",MAX(O$15:O150)+1) -> 
N152: 0 | O152: =IF(N152=0,"",MAX(O$15:O151)+1) -> 
N153: 0 | O153: =IF(N153=0,"",MAX(O$15:O152)+1) -> 
N154: 0 | O154: =IF(N154=0,"",MAX(O$15:O153)+1) -> 
N155: 0 | O155: =IF(N155=0,"",MAX(O$15:O154)+1) -> 
N156: 0 | O156: =IF(N156=0,"",MAX(O$15:O155)+1) -> 
N157: 0 | O157: =IF(N157=0,"",MAX(O$15:O156)+1) -> 
N158: 0 | O158: =IF(N158=0,"",MAX(O$15:O157)+1) -> 
N159: 0 | O159: =IF(N159=0,"",MAX(O$15:O158)+1) -> 
N160: 0 | O160: =IF(N160=0,"",MAX(O$15:O159)+1) -> 
N161: 0 | O161: =IF(N161=0,"",MAX(O$15:O160)+1) -> 
N162: 0 | O162: =IF(N162=0,"",MAX(O$15:O161)+1) -> 
N163: 0 | O163: =IF(N163=0,"",MAX(O$15:O162)+1) -> 
N164: 0 | O164: =IF(N164=0,"",MAX(O$15:O163)+1) -> 
N165: 0 | O165: =IF(N165=0,"",MAX(O$15:O164)+1) -> 
N166: 0 | O166: =IF(N166=0,"",MAX(O$15:O165)+1) -> 
N167: 0 | O167: =IF(N167=0,"",MAX(O$15:O166)+1) -> 
N168: 0 | O168: =IF(N168=0,"",MAX(O$15:O167)+1) -> 
N169: 0 | O169: =IF(N169=0,"",MAX(O$15:O168)+1) -> 
N170: 0 | O170: =IF(N170=0,"",MAX(O$15:O169)+1) -> 
N171: 0 | O171: =IF(N171=0,"",MAX(O$15:O170)+1) -> 
N172: 0 | O172: =IF(N172=0,"",MAX(O$15:O171)+1) -> 
N173: 0 | O173: =IF(N173=0,"",MAX(O$15:O172)+1) -> 
N174: 0 | O174: =IF(N174=0,"",MAX(O$15:O173)+1) -> 
N175: 0 | O175: =IF(N175=0,"",MAX(O$15:O174)+1) -> 
N176: 0 | O176: =IF(N176=0,"",MAX(O$15:O175)+1) -> 
N177: 0 | O177: =IF(N177=0,"",MAX(O$15:O176)+1) -> 
N178: 0 | O178: =IF(N178=0,"",MAX(O$15:O177)+1) -> 
N179: 0 | O179: =IF(N179=0,"",MAX(O$15:O178)+1) -> 
N180: 0 | O180: =IF(N180=0,"",MAX(O$15:O179)+1) -> 
N181: 0 | O181: =IF(N181=0,"",MAX(O$15:O180)+1) -> 
N182: 0 | O182: =IF(N182=0,"",MAX(O$15:O181)+1) -> 
N183: 0 | O183: =IF(N183=0,"",MAX(O$15:O182)+1) -> 
N184: 0 | O184: =IF(N184=0,"",MAX(O$15:O183)+1) -> 
N185: 0 | O185: =IF(N185=0,"",MAX(O$15:O184)+1) -> 
N186: 0 | O186: =IF(N186=0,"",MAX(O$15:O185)+1) -> 
N187: 0 | O187: =IF(N187=0,"",MAX(O$15:O186)+1) -> 
N188: 0 | O188: =IF(N188=0,"",MAX(O$15:O187)+1) -> 
N189: 0 | O189: =IF(N189=0,"",MAX(O$15:O188)+1) -> 
N190: 0 | O190: =IF(N190=0,"",MAX(O$15:O189)+1) -> 
N191: 0 | O191: =IF(N191=0,"",MAX(O$15:O190)+1) -> 
N192: 0 | O192: =IF(N192=0,"",MAX(O$15:O191)+1) -> 
N193: 0 | O193: =IF(N193=0,"",MAX(O$15:O192)+1) -> 
N194: 0 | O194: =IF(N194=0,"",MAX(O$15:O193)+1) -> 
N195: 0 | O195: =IF(N195=0,"",MAX(O$15:O194)+1) -> 
N196: 0 | O196: =IF(N196=0,"",MAX(O$15:O195)+1) -> 
N197: 0 | O197: =IF(N197=0,"",MAX(O$15:O196)+1) -> 
N198: 0 | O198: =IF(N198=0,"",MAX(O$15:O197)+1) -> 
N199: 0 | O199: =IF(N199=0,"",MAX(O$15:O198)+1) -> 
N200: 0 | O200: =IF(N200=0,"",MAX(O$15:O199)+1) -> 
N201: 0 | O201: =IF(N201=0,"",MAX(O$15:O200)+1) -> 
N202: 0 | O202: =IF(N202=0,"",MAX(O$15:O201)+1) -> 
N203: 0 | O203: =IF(N203=0,"",MAX(O$15:O202)+1) -> 
N204: 0 | O204: =IF(N204=0,"",MAX(O$15:O203)+1) -> 
N205: 0 | O205: =IF(N205=0,"",MAX(O$15:O204)+1) -> 
N206: =IFERROR(M206*L206/1000,"") -> 0 | O206: =IF(N206=0,"",MAX(O$15:O205)+1) -> 
N207: 0 | O207: =IF(N207=0,"",MAX(O$15:O206)+1) -> 
N208: 0 | O208: =IF(N208=0,"",MAX(O$15:O207)+1) ->  | P208: =IFERROR(INDEX($N$15:$N$5014,MATCH(ROW()-ROW($O$14),$O$15:$O$5014,0)),"") -> 
... 4806 more rows

Sheet HavePREC_prop_matched_hayes
A1: PROPORTIONS MATCHED (HAYES)
A2: 1-type I | B2: power | C2: z_a | D2: z_b | F2: CSMF Rank | G2: p_0 | H2: % | I2: p_1 | J2: cluster | K2: km | L2: # clusters
G3: CSMF time 0 | H3: Reduction | I3: CSMF time 1 | J3: size n | L3: per arm* | M3: MIS | N3: Male:Female | O3: * clusters to be conservative, round up | P3: n without clustering (n1) | Q3: n with clustering (n2) | R3: DE | S3: ICC | T3: CV or k
A4: =$I$26 -> 0.05 | B4: =$F$26 -> 0.8 | C4: =NORMSINV(1-(0.5*(A4))) -> 1.959963985 | D4: =NORMSINV(B4) -> 0.8416212336 | E4: =(C4+D4)^2 -> 7.848879734 | G4: =MIN(G5:G14) -> 0.01 | H4: =PrecisionCSMF -> 0.25 | I4: =G4*(1-H4) -> 0.0075 | J4: =$F$22*$I$22*(1-$I$20)*(1-$I$18) -> 73.71 | K4: =$F$24 -> 0.25 | L4: =2+E4*((G4*(1-G4)/J4)+(I4*(1-I4)/J4)+(K4*K4)*((G4*G4)+(I4*I4)))/((I4-G4)^2) -> 309.7548699 | M4: =L4*$F$28 -> 464.6323048 | N4: =M4*$I$24 -> 929.2646096 | O4: =INT(N4)+1 -> 930 | P4: =E4*(G4*(1-G4)+I4*(1-I4))/(G4-I4)^2 -> 21780.64126 | Q4: =J4*L4 -> 22832.03146 | R4: =Q4/P4 -> 1.048271774 | S4: =(R4-1)/(J4-1) -> 0.0006638945694 | T4: =SQRT(S4*(1-G4)/G4) -> 0.2563699717
A5: 0.05 | B5: 0.8 | C5: 1.959963985 | D5: 0.8416212336 | E5: 7.848879734 | G5: 0.25 | H5: =(1-I5/G5) -> 0.07065463147 | I5: =(-SQRT((-2*L5*J5*G5+4*J5*G5-E5)^2-4*(L5*J5+K5^2*(-J5)*E5-2*J5+E5)*(L5*J5*G5^2-K5^2*J5*G5^2*E5-2*J5*G5^2+G5^2*E5-G5*E5))+2*L5*J5*G5-4*J5*G5+E5)/(2*(L5*J5+K5^2*(-J5)*E5-2*J5+E5)) -> 0.2323363421 | J5: =$F$22*$I$22*(1-$I$20)*(1-$I$18) -> 73.71 | K5: 0.25 | L5: =M5/$F$28 -> 310 | M5: =N5/$I$24 -> 465 | N5: =$O$4 -> 930 | O5: =ROUND(N5,0) -> 930 | P5: 9203.579443 | Q5: 22850.1 | R5: 2.482740562 | S5: 0.02039252595 | T5: 0.2473410153
A6: 0.05 | B6: 0.8 | C6: 1.959963985 | D6: 0.8416212336 | E6: 7.848879734 | G6: 0.2 | H6: =(1-I6/G6) -> 0.07510730328 | I6: =(-SQRT((-2*L6*J6*G6+4*J6*G6-E6)^2-4*(L6*J6+K6^2*(-J6)*E6-2*J6+E6)*(L6*J6*G6^2-K6^2*J6*G6^2*E6-2*J6*G6^2+G6^2*E6-G6*E6))+2*L6*J6*G6-4*J6*G6+E6)/(2*(L6*J6+K6^2*(-J6)*E6-2*J6+E6)) -> 0.1849785393 | J6: 73.71 | K6: 0.25 | L6: =M6/$F$28 -> 310 | M6: =N6/$I$24 -> 465 | N6: =$O$4 -> 930 | O6: =ROUND(N6,0) -> 930 | P6: 10809.62245 | Q6: 22850.1 | R6: 2.113866613 | S6: 0.01531930427 | T6: 0.2475423541
A7: 0.05 | B7: 0.8 | C7: 1.959963985 | D7: 0.8416212336 | E7: 7.848879734 | G7: 0.15 | H7: 0.08196748528 | I7: 0.1377048772 | J7: 73.71 | K7: 0.25 | L7: 310 | M7: 465 | N7: 930 | O7: 930 | P7: 12785.11074 | Q7: 22850.1 | R7: 1.787243026 | S7: 0.01082716305 | T7: 0.2476972426
A8: 0.05 | B8: 0.8 | C8: 1.959963985 | D8: 0.8416212336 | E8: 7.848879734 | G8: 0.125 | H8: 0.08704694681 | I8: 0.1141191316 | J8: 73.71 | K8: 0.25 | L8: 310 | M8: 465 | N8: 930 | O8: 930 | P8: 13953.16518 | Q8: 22850.1 | R8: 1.63762843 | S8: 0.008769473668 | T8: 0.2477626196
A9: 0.05 | B9: 0.8 | C9: 1.959963985 | D9: 0.8416212336 | E9: 7.848879734 | G9: 0.1 | H9: 0.09412418541 | I9: 0.09058758146 | J9: 73.71 | K9: 0.25 | L9: 310 | M9: 465 | N9: 930 | O9: 930 | P9: 15271.99584 | Q9: 22850.1 | R9: 1.496209156 | S9: 0.006824496709 | T9: 0.2478315363
A10: 0.05 | B10: 0.8 | C10: 1.959963985 | D10: 0.8416212336 | E10: 7.848879734 | G10: 0.075 | H10: 0.1047976678 | I10: 0.06714017492 | J10: 73.71 | K10: 0.25 | L10: 310 | M10: 465 | N10: 930 | O10: 930 | P10: 16771.8163 | Q10: 22850.1 | R10: 1.362410582 | S10: 0.004984329281 | T10: 0.2479382876
A11: 0.05 | B11: 0.8 | C11: 1.959963985 | D11: 0.8416212336 | E11: 7.848879734 | G11: 0.05 | H11: 0.1232177227 | I11: 0.04383911386 | J11: 73.71 | K11: 0.25 | L11: 310 | M11: 465 | N11: 930 | O11: 930 | P11: 18490.24218 | Q11: 22850.1 | R11: 1.235792359 | S11: 0.003242915126 | T11: 0.2482244698
A12: 0.05 | B12: 0.8 | C12: 1.959963985 | D12: 0.8416212336 | E12: 7.848879734 | G12: 0.03 | H12: 0.1530553953 | I12: 0.02540833814 | J12: 73.71 | K12: 0.25 | L12: 310 | M12: 465 | N12: 930 | O12: 930 | P12: 20051.9419 | Q12: 22850.1 | R12: 1.139545492 | S12: 0.001919206331 | T12: 0.2491070815
A13: 0.05 | B13: 0.8 | C13: 1.959963985 | D13: 0.8416212336 | E13: 7.848879734 | G13: 0.02 | H13: 0.182998533 | I13: 0.01634002934 | J13: 73.71 | K13: 0.25 | L13: 310 | M13: 465 | N13: 930 | O13: 930 | P13: 20902.2241 | Q13: 22850.1 | R13: 1.093189887 | S13: 0.001281665341 | T13: 0.2506024775
A14: 0.05 | B14: 0.8 | C14: 1.959963985 | D14: 0.8416212336 | E14: 7.848879734 | G14: 0.01 | H14: 0.2499072578 | I14: 0.007500927422 | J14: 73.71 | K14: 0.25 | L14: 310 | M14: 465 | N14: 930 | O14: 930 | P14: 21797.95819 | Q14: 22850.1 | R14: 1.048267906 | S14: 0.0006638413755 | T14: 0.2563597008
O15: Clusters needed | S15: =SUMPRODUCT(S4:S14,G4:G14) -> 0.01219715799
E18: CDR | F18: =CDR -> 6.5 | H18: Non-response rate | I18: =NonResponse -> 0.1
D20: Cluster population | F20: =cluster_pop -> 18000 | H20: Prior MCCD | I20: =PriorMCCD -> 0.3
A22: Expected total deaths per cluster per year | F22: =Expected_deaths -> 117 | H22: Years of follow up | I22: =YearsFollowUp -> 1
E24: k | F24: =Coeff_k -> 0.25 | H24: Male:Female | I24: =MaleFemale -> 2
E26: Power | F26: =Power -> 0.8 | H26: Significance Level | I26: =Significance -> 0.05
E28: MIS | F28: =MIS -> 1.5
B30: km = coefficient of variation within matched pairs
B35: From the book:

Sheet HaveCLUSTER_prop_matched_hayes
A1: PROPORTIONS MATCHED (HAYES)
A2: 1-type I | B2: power | C2: z_a | D2: z_b | F2: CSMF Rank | G2: p_0 | H2: % | I2: p_1 | J2: cluster | K2: km | L2: # clusters | M2: MIS | O2: * to be conservative, round up
G3: CSMF time 0 | H3: Reduction | I3: CSMF time 1 | J3: size n | L3: per arm* | N3: Male:Female | P3: n without clustering (n1) | Q3: n with clustering (n2) | R3: DE | S3: ICC | T3: CV or k
A4: =$I$26 -> 0.05 | B4: =$F$26 -> 0.8 | C4: =NORMSINV(1-(0.5*(A4))) -> 1.959963985 | D4: =NORMSINV(B4) -> 0.8416212336 | E4: =(C4+D4)^2 -> 7.848879734 | F4: 20th | G4: =MIN(G5:G14) -> 0.01 | H4: =MAX(H5:H14) -> 0.5302370093 | O4: =NumberClusters -> 178 | P4: =E4*(G4*(1-G4)+I4*(1-I4))/(G4-I4)^2 -> 777.0390937 | Q4: =J4*L4 -> 0 | R4: =Q4/P4 -> 0 | S4: =(R4-1)/(J4-1) -> 1 | T4: =SQRT(S4*(1-G4)/G4) -> 9.949874371
A5: 0.05 | B5: 0.8 | C5: =NORMSINV(1-(0.5*(A5))) -> 1.959963985 | D5: =NORMSINV(B5) -> 0.8416212336 | E5: =(C5+D5)^2 -> 7.848879734 | F5: =Mask1!E24 -> 0 | G5: 0.25 | H5: =1-I5/G5 -> 0.1585028426 | I5: =(-SQRT((-2*M5*J5*G5+4*J5*G5-E5)^2-4*(M5*J5+K5^2*(-J5)*E5-2*J5+E5)*(M5*J5*G5^2-K5^2*J5*G5^2*E5-2*J5*G5^2+G5^2*E5-G5*E5))+2*M5*J5*G5-4*J5*G5+E5)/(2*(M5*J5+K5^2*(-J5)*E5-2*J5+E5)) -> 0.2103742894 | J5: =$F$22*$I$22*(1-$I$18)*(1-$I$20) -> 73.71 | K5: =$F$24 -> 0.25 | L5: =2+E5*((G5*(1-G5)/J5)+(I5*(1-I5)/J5)+(K5*K5)*((G5*G5)+(I5*I5)))/((I5-G5)^2) -> 59.33333333 | M5: =N5/$F$28 -> 59.33333333 | N5: =O4/$I$24 -> 89 | O5: =O4 -> 178 | P5: 1767.610684 | Q5: 4373.46 | R5: =Q5/P5 -> 2.474221297 | S5: 0.02027535824 | T5: 0.2466294279
A6: 0.05 | B6: 0.8 | C6: =NORMSINV(1-(0.5*(A6))) -> 1.959963985 | D6: =NORMSINV(B6) -> 0.8416212336 | E6: =(C6+D6)^2 -> 7.848879734 | F6: =Mask1!E25 -> 0 | G6: 0.2 | H6: =1-I6/G6 -> 0.168349341 | I6: 0.1663301318 | J6: =$F$22*$I$22*(1-$I$18)*(1-$I$20) -> 73.71 | K6: 0.25 | L6: =2+E6*((G6*(1-G6)/J6)+(I6*(1-I6)/J6)+(K6*K6)*((G6*G6)+(I6*I6)))/((I6-G6)^2) -> 59.33333333 | M6: 59.33333333 | N6: =O5/$I$24 -> 89 | O6: =O5 -> 178 | P6: 2067.799036 | Q6: 4373.46 | R6: =Q6/P6 -> 2.115031453 | S6: 0.01533532462 | T6: 0.2476717555
A7: 0.05 | B7: 0.8 | C7: 1.959963985 | D7: 0.8416212336 | E7: 7.848879734 | F7: =Mask1!E26 -> 0 | G7: 0.15 | H7: =1-I7/G7 -> 0.1834593958 | I7: 0.1224810906 | J7: 73.71 | K7: 0.25 | L7: =2+E7*((G7*(1-G7)/J7)+(I7*(1-I7)/J7)+(K7*K7)*((G7*G7)+(I7*I7)))/((I7-G7)^2) -> 59.33333333 | M7: 59.33333333 | N7: 89 | O7: 178 | P7: 2435.427269 | Q7: 4373.46 | R7: 1.795767033 | S7: 0.01094439599 | T7: 0.249034624
A8: 0.05 | B8: 0.8 | C8: 1.959963985 | D8: 0.8416212336 | E8: 7.848879734 | F8: =Mask1!E27 -> 0 | G8: 0.125 | H8: 0.1946000343 | I8: 0.1006749957 | J8: 73.71 | K8: 0.25 | L8: =2+E8*((G8*(1-G8)/J8)+(I8*(1-I8)/J8)+(K8*K8)*((G8*G8)+(I8*I8)))/((I8-G8)^2) -> 59.33333333 | M8: 59.33333333 | N8: 89 | O8: 178 | P8: 2651.833224 | Q8: 4373.46 | R8: 1.649221362 | S8: 0.008928914338 | T8: 0.2500048007
A9: 0.05 | B9: 0.8 | C9: 1.959963985 | D9: 0.8416212336 | E9: 7.848879734 | F9: =Mask1!E28 -> 0 | G9: 0.1 | H9: 0.2100551718 | I9: 0.07899448282 | J9: 73.71 | K9: 0.25 | L9: 59.33333333 | M9: 59.33333333 | N9: 89 | O9: 178 | P9: 2895.166426 | Q9: 4373.46 | R9: 1.51060746 | S9: 0.007022520418 | T9: 0.2514014395
A10: 0.05 | B10: 0.8 | C10: 1.959963985 | D10: 0.8416212336 | E10: 7.848879734 | F10: =Mask1!E29 -> 0 | G10: 0.075 | H10: 0.2332154862 | I10: 0.05750883854 | J10: 73.71 | K10: 0.25 | L10: 59.33333333 | M10: 59.33333333 | N10: 89 | O10: 178 | P10: 3170.344968 | Q10: 4373.46 | R10: 1.379490259 | S10: 0.005219230626 | T10: 0.2537134428
A11: 0.05 | B11: 0.8 | C11: 1.959963985 | D11: 0.8416212336 | E11: 7.848879734 | F11: =Mask1!#REF! ->  | G11: 0.05 | H11: 0.2727645571 | I11: 0.03636177214 | J11: 73.71 | K11: 0.25 | L11: 59.33333333 | M11: 59.33333333 | N11: 89 | O11: 178 | P11: 3483.005154 | Q11: 4373.46 | R11: 1.255657057 | S11: 0.003516119607 | T11: 0.258469094
A12: 0.05 | B12: 0.8 | C12: 1.959963985 | D12: 0.8416212336 | E12: 7.848879734 | F12: =Mask1!E31 -> 0 | G12: 0.03 | H12: 0.335694008 | I12: 0.01992917976 | J12: 73.71 | K12: 0.25 | L12: 59.33333333 | M12: 59.33333333 | N12: 89 | O12: 178 | P12: 3763.571614 | Q12: 4373.46 | R12: 1.162050427 | S12: 0.002228722687 | T12: 0.2684437251
A13: 0.05 | B13: 0.8 | C13: 1.959963985 | D13: 0.8416212336 | E13: 7.848879734 | F13: =Mask1!#REF! ->  | G13: 0.02 | H13: 0.3974306293 | I13: 0.01205138741 | J13: 73.71 | K13: 0.25 | L13: 59.33333333 | M13: 59.33333333 | N13: 89 | O13: 178 | P13: 3913.995942 | Q13: 4373.46 | R13: 1.117390019 | S13: 0.001614496204 | T13: 0.2812655578
A14: 0.05 | B14: 0.8 | C14: 1.959963985 | D14: 0.8416212336 | E14: 7.848879734 | F14: =Mask1!#REF! ->  | G14: 0.01 | H14: 0.5302370093 | I14: 0.004697629907 | J14: 73.71 | K14: 0.25 | L14: 59.33333333 | M14: 59.33333333 | N14: =O13/$I$24 -> 89 | O14: 178 | P14: 4069.048953 | Q14: 4373.46 | R14: 1.07481135 | S14: 0.001028900431 | T14: 0.3191569249
O15: Clusters needed | S15: =SUMPRODUCT(S4:S14,G4:G14) -> 0.0222726191
E18: CDR | F18: =CDR -> 6.5 | H18: Non-response rate | I18: =NonResponse -> 0.1
D20: Cluster population | F20: =cluster_pop -> 18000 | H20: Prior MCCD | I20: =PriorMCCD -> 0.3
A22: Expected total deaths per cluster per year | F22: =Expected_deaths -> 117 | H22: Years of follow up | I22: =YearsFollowUp -> 1
E24: k | F24: =Coeff_k -> 0.25 | H24: Male:Female | I24: =MaleFemale -> 2
E26: Power | F26: =Power -> 0.8 | H26: Significance Level | I26: =Significance -> 0.05
E28: MIS | F28: =MIS -> 1.5
B30: km = coefficient of variation within matched pairs
B35: From the book:

Sheet values for k
A1: INTERPRETATION OF VARIOUS VALUES OF K
A2: k | B2: (1-2*k) | C2: (1+2*k) | D2: mean rate | E2: range_low | F2: range_high
A3: 0.15 | B3: =(1-2*A3) -> 0.7 | C3: =(1+2*A3) -> 1.3 | D3: 0.01 | E3: =D3*B3 -> 0.007 | F3: =D3*C3 -> 0.013
A4: 0.2 | B4: =(1-2*A4) -> 0.6 | C4: =(1+2*A4) -> 1.4 | D4: 0.01 | E4: =D4*B4 -> 0.006 | F4: 0.014
A5: 0.25 | B5: 0.5 | C5: 1.5 | D5: 0.01 | E5: 0.005 | F5: 0.015
A6: 0.3 | B6: 0.4 | C6: 1.6 | D6: 0.01 | E6: 0.004 | F6: 0.016
A7: 0.35 | B7: 0.3 | C7: 1.7 | D7: 0.01 | E7: 0.003 | F7: 0.017
A8: 0.15 | B8: 0.7 | C8: 1.3 | D8: 0.015 | E8: 0.0105 | F8: 0.0195
A9: 0.2 | B9: 0.6 | C9: 1.4 | D9: 0.015 | E9: 0.009 | F9: 0.021
A10: 0.25 | B10: 0.5 | C10: 1.5 | D10: 0.015 | E10: 0.0075 | F10: 0.0225
A11: 0.3 | B11: 0.4 | C11: 1.6 | D11: 0.015 | E11: 0.006 | F11: 0.024
A12: 0.35 | B12: 0.3 | C12: 1.7 | D12: 0.015 | E12: 0.0045 | F12: 0.0255
A13: 0.15 | B13: 0.7 | C13: 1.3 | D13: 0.02 | E13: 0.014 | F13: 0.026
A14: 0.2 | B14: 0.6 | C14: 1.4 | D14: 0.02 | E14: 0.012 | F14: 0.028
A15: 0.25 | B15: 0.5 | C15: 1.5 | D15: 0.02 | E15: 0.01 | F15: 0.03
A16: 0.3 | B16: 0.4 | C16: 1.6 | D16: 0.02 | E16: 0.008 | F16: 0.032
A17: 0.35 | B17: 0.3 | C17: 1.7 | D17: 0.02 | E17: 0.006 | F17: 0.034
A18: 0.15 | B18: =(1-2*A18) -> 0.7 | C18: =(1+2*A18) -> 1.3 | D18: 0.04 | E18: =D18*B18 -> 0.028 | F18: =D18*C18 -> 0.052
A19: 0.2 | B19: 0.6 | C19: =(1+2*A19) -> 1.4 | D19: 0.04 | E19: =D19*B19 -> 0.024 | F19: =D19*C19 -> 0.056
A20: 0.25 | B20: 0.5 | C20: =(1+2*A20) -> 1.5 | D20: 0.04 | E20: =D20*B20 -> 0.02 | F20: =D20*C20 -> 0.06
A21: 0.3 | B21: 0.4 | C21: =(1+2*A21) -> 1.6 | D21: 0.04 | E21: =D21*B21 -> 0.016 | F21: =D21*C21 -> 0.064
A22: 0.35 | B22: 0.3 | C22: =(1+2*A22) -> 1.7 | D22: 0.04 | E22: =D22*B22 -> 0.012 | F22: =D22*C22 -> 0.068
J24: FROM IHME | Q24: low | R24: upper
A25: 0.25 | B25: =(1-2*A25) -> 0.5 | C25: =(1+2*A25) -> 1.5 | D25: =N25 -> 0.0007797332107 | E25: =D25*B25 -> 0.0003898666054 | F25: =D25*C25 -> 0.001169599816 | I25: 1 | J25: HIV/AIDS | K25: Rate | L25: 2016 | M25: 77.97332107 | N25: =M25/100000 -> 0.0007797332107 | O25: 95.51962367 | P25: 66.31765624 | Q25: =P25/100000 -> 0.0006631765624 | R25: =O25/100000 -> 0.0009551962367
A26: =$A$25 -> 0.25 | B26: =(1-2*A26) -> 0.5 | C26: =(1+2*A26) -> 1.5 | D26: =N26 -> 0.0007123435119 | E26: =D26*B26 -> 0.000356171756 | F26: =D26*C26 -> 0.001068515268 | I26: 2 | J26: Lower respiratory infections | K26: Rate | L26: 2016 | M26: 71.23435119 | N26: =M26/100000 -> 0.0007123435119 | O26: 85.81295126 | P26: 57.57118886 | Q26: 0.0005757118886 | R26: 0.0008581295126
A27: =$A$25 -> 0.25 | B27: 0.5 | C27: 1.5 | D27: 0.000491527115 | E27: 0.0002457635575 | F27: 0.0007372906725 | I27: 3 | J27: Diarrheal diseases | K27: Rate | L27: 2016 | M27: 49.1527115 | N27: 0.000491527115 | O27: 73.88171437 | P27: 31.08538362 | Q27: 0.0003108538362 | R27: 0.0007388171437
A28: 0.25 | B28: 0.5 | C28: 1.5 | D28: 0.0004839748863 | E28: 0.0002419874431 | F28: 0.0007259623294 | I28: 4 | J28: Ischemic heart disease | K28: Rate | L28: 2016 | M28: 48.39748863 | N28: 0.0004839748863 | O28: 56.92151031 | P28: 40.43244357 | Q28: 0.0004043244357 | R28: 0.0005692151031
A29: 0.25 | B29: 0.5 | C29: 1.5 | D29: 0.0002942332927 | E29: 0.0001471166464 | F29: 0.0004413499391 | I29: 5 | J29: Malaria | K29: Rate | L29: 2016 | M29: 29.42332927 | N29: 0.0002942332927 | O29: 41.47591164 | P29: 19.85088941 | Q29: 0.0001985088941 | R29: 0.0004147591164
A30: 0.25 | B30: 0.5 | C30: 1.5 | D30: 0.000288477244 | E30: 0.000144238622 | F30: 0.000432715866 | I30: 6 | J30: Tuberculosis | K30: Rate | L30: 2016 | M30: 28.8477244 | N30: 0.000288477244 | O30: 36.41629197 | P30: 23.25218082 | Q30: 0.0002325218082 | R30: 0.0003641629197
A31: 0.25 | B31: 0.5 | C31: 1.5 | D31: 0.0002686864783 | E31: 0.0001343432391 | F31: 0.0004030297174 | I31: 7 | J31: Cerebrovascular disease | K31: Rate | L31: 2016 | M31: 26.86864783 | N31: 0.0002686864783 | O31: 31.83466701 | P31: 21.97702248 | Q31: 0.0002197702248 | R31: 0.0003183466701
A32: 0.25 | B32: 0.5 | C32: 1.5 | D32: 0.0002456038015 | E32: 0.0001228019008 | F32: 0.0003684057023 | I32: 8 | J32: Neonatal encephalopathy due to birth asphyxia and trauma | K32: Rate | L32: 2016 | M32: 24.56038015 | N32: 0.0002456038015 | O32: 33.36235588 | P32: 17.8190648 | Q32: 0.000178190648 | R32: 0.0003336235588
A33: 0.25 | B33: 0.5 | C33: 1.5 | D33: 0.0002152053255 | E33: 0.0001076026627 | F33: 0.0003228079882 | I33: 9 | J33: Protein-energy malnutrition | K33: Rate | L33: 2016 | M33: 21.52053255 | N33: 0.0002152053255 | O33: 29.79975169 | P33: 15.34262144 | Q33: 0.0001534262144 | R33: 0.0002979975169
A34: 0.25 | B34: 0.5 | C34: 1.5 | D34: 0.0001630931439 | E34: 8.154657197e-05 | F34: 0.0002446397159 | I34: 10 | J34: Neonatal preterm birth complications | K34: Rate | L34: 2016 | M34: 16.30931439 | N34: 0.0001630931439 | O34: 23.24743701 | P34: 11.07402423 | Q34: 0.0001107402423 | R34: 0.0002324743701
A35: 0.25 | B35: 0.5 | C35: 1.5 | D35: 0.0001590498308 | E35: 7.952491538e-05 | F35: 0.0002385747461 | I35: 11 | J35: Meningitis | K35: Rate | L35: 2016 | M35: 15.90498308 | N35: 0.0001590498308 | O35: 23.08305486 | P35: 11.76196167 | Q35: 0.0001176196167 | R35: 0.0002308305486
A36: 0.25 | B36: 0.5 | C36: 1.5 | D36: 0.0001328142106 | E36: 6.640710532e-05 | F36: 0.000199221316 | I36: 12 | J36: Diabetes mellitus | K36: Rate | L36: 2016 | M36: 13.28142106 | N36: 0.0001328142106 | O36: 15.53580973 | P36: 11.09920481 | Q36: 0.0001109920481 | R36: 0.0001553580973
A37: 0.25 | B37: 0.5 | C37: 1.5 | D37: 0.0001236042928 | E37: 6.180214639e-05 | F37: 0.0001854064392 | I37: 13 | J37: Road injuries | K37: Rate | L37: 2016 | M37: 12.36042928 | N37: 0.0001236042928 | O37: 14.59755533 | P37: 10.41510713 | Q37: 0.0001041510713 | R37: 0.0001459755533
A38: 0.25 | B38: 0.5 | C38: 1.5 | D38: 0.0001177452015 | E38: 5.887260073e-05 | F38: 0.0001766178022 | I38: 14 | J38: Neonatal sepsis and other neonatal infections | K38: Rate | L38: 2016 | M38: 11.77452015 | N38: 0.0001177452015 | O38: 18.78587451 | P38: 7.076629851 | Q38: 7.076629851e-05 | R38: 0.0001878587451
A39: 0.25 | B39: 0.5 | C39: 1.5 | D39: 9.098550282e-05 | E39: 4.549275141e-05 | F39: 0.0001364782542 | I39: 15 | J39: Chronic obstructive pulmonary disease | K39: Rate | L39: 2016 | M39: 9.098550282 | N39: 9.098550282e-05 | O39: 11.13060315 | P39: 7.218727402 | Q39: 7.218727402e-05 | R39: 0.0001113060315
A40: 0.25 | B40: 0.5 | C40: 1.5 | D40: 8.673434531e-05 | E40: 4.336717265e-05 | F40: 0.000130101518 | I40: 16 | J40: Alzheimer disease and other dementias | K40: Rate | L40: 2016 | M40: 8.673434531 | N40: 8.673434531e-05 | O40: 10.83950815 | P40: 6.982946511 | Q40: 6.982946511e-05 | R40: 0.0001083950815
A41: 0.25 | B41: 0.5 | C41: 1.5 | D41: 8.41747603e-05 | E41: 4.208738015e-05 | F41: 0.0001262621404 | I41: 17 | J41: Sexually transmitted diseases excluding HIV | K41: Rate | L41: 2016 | M41: 8.41747603 | N41: 8.41747603e-05 | O41: 16.62301208 | P41: 3.234517511 | Q41: 3.234517511e-05 | R41: 0.0001662301208
A42: 0.25 | B42: 0.5 | C42: 1.5 | D42: 8.25036689e-05 | E42: 4.125183445e-05 | F42: 0.0001237555033 | I42: 18 | J42: Hypertensive heart disease | K42: Rate | L42: 2016 | M42: 8.25036689 | N42: 8.25036689e-05 | O42: 11.21025121 | P42: 5.469939331 | Q42: 5.469939331e-05 | R42: 0.0001121025121
A43: 0.25 | B43: 0.5 | C43: 1.5 | D43: 7.993166816e-05 | E43: 3.996583408e-05 | F43: 0.0001198975022 | I43: 19 | J43: Interpersonal violence | K43: Rate | L43: 2016 | M43: 7.993166816 | N43: 7.993166816e-05 | O43: 10.65694623 | P43: 6.014051504 | Q43: 6.014051504e-05 | R43: 0.0001065694623
A44: 0.25 | B44: 0.5 | C44: 1.5 | D44: 7.291237419e-05 | E44: 3.645618709e-05 | F44: 0.0001093685613 | I44: 20 | J44: Paralytic ileus and intestinal obstruction | K44: Rate | L44: 2016 | M44: 7.291237419 | N44: =M44/100000 -> 7.291237419e-05 | O44: 9.14554653 | P44: 5.924982964 | Q44: =P44/100000 -> 5.924982964e-05 | R44: =O44/100000 -> 9.14554653e-05

Sheet Lists
A1: Country | C1: Measure | D1: Design | E1: Use of the tool | F1: Male:Female | G1: Title
A2: Afghanistan | B2: Yes | C2: Rates /100,000 | D2: Matched | E2: =IF(E3=1,"HavePREC", "HaveCLUSTER") -> HaveCLUSTER | F2: =IF(Mask1!C18="Yes",2,1) -> 2 | G2: VA Sampling Tool v 1.0
A3: Albania | B3: No | C3: CSMFs | D3: Unmatched | E3: 2
A4: Algeria
A5: American Samoa
A6: Andorra
A7: Angola
A8: Anguilla
A9: Antigua & Barbuda
A10: Argentina
A11: Armenia
A12: Aruba
A13: Australia
A14: Austria
A15: Azerbaijan
A16: Bahamas, The
A17: Bahrain
A18: Bangladesh
A19: Barbados
A20: Belarus
A21: Belgium
A22: Belize
A23: Benin
A24: Bermuda
A25: Bhutan
A26: Bolivia
A27: Bosnia & Herzegovina
A28: Botswana
A29: Brazil
A30: British Virgin Is.
A31: Brunei
A32: Bulgaria
A33: Burkina Faso
A34: Burundi
A35: Cambodia
A36: Cameroon
A37: Canada
A38: Cape Verde
A39: Cayman Islands
A40: Central African Rep.
A41: Chad
A42: Chile
A43: China
A44: Colombia
A45: Comoros
A46: Congo, Dem. Rep.
A47: Congo, Repub. of the
A48: Cook Islands
A49: Costa Rica
A50: Cote d'Ivoire
A51: Croatia
A52: Cuba
A53: Cyprus
A54: Czech Republic
A55: Denmark
A56: Djibouti
A57: Dominica
A58: Dominican Republic
A59: East Timor
A60: Ecuador
A61: Egypt
A62: El Salvador
A63: Equatorial Guinea
A64: Eritrea
A65: Estonia
A66: Ethiopia
A67: Faroe Islands
A68: Fiji
A69: Finland
A70: France
A71: French Guiana
A72: French Polynesia
A73: Gabon
A74: Gambia, The
A75: Gaza Strip
A76: Georgia
A77: Germany
A78: Ghana
A79: Gibraltar
A80: Greece
A81: Greenland
A82: Grenada
A83: Guadeloupe
A84: Guam
A85: Guatemala
A86: Guernsey
A87: Guinea
A88: Guinea-Bissau
A89: Guyana
A90: Haiti
A91: Honduras
A92: Hong Kong
A93: Hungary
A94: Iceland
A95: India
A96: Indonesia
A97: Iran
A98: Iraq
A99: Ireland
A100: Isle of Man
A101: Israel
A102: Italy
A103: Jamaica
A104: Japan
A105: Jersey
A106: Jordan
A107: Kazakhstan
A108: Kenya
A109: Kiribati
A110: Korea, North
A111: Korea, South
A112: Kuwait
A113: Kyrgyzstan
A114: Laos
A115: Latvia
A116: Lebanon
A117: Lesotho
A118: Liberia
A119: Libya
A120: Liechtenstein
A121: Lithuania
A122: Luxembourg
A123: Macau
A124: Macedonia
A125: Madagascar
A126: Malawi
A127: Malaysia
A128: Maldives
A129: Mali
A130: Malta
A131: Marshall Islands
A132: Martinique
A133: Mauritania
A134: Mauritius
A135: Mayotte
A136: Mexico
A137: Micronesia, Fed. St.
A138: Moldova
A139: Monaco
A140: Mongolia
A141: Montserrat
A142: Morocco
A143: Mozambique
A144: Myanmar
A145: Namibia
A146: Nauru
A147: Nepal
A148: Netherlands
A149: Netherlands Antilles
A150: New Caledonia
A151: New Zealand
A152: Nicaragua
A153: Niger
A154: Nigeria
A155: N. Mariana Islands
A156: Norway
A157: Oman
A158: Pakistan
A159: Palau
A160: Panama
A161: Papua New Guinea
A162: Paraguay
A163: Peru
A164: Philippines
A165: Poland
A166: Portugal
A167: Puerto Rico
A168: Qatar
A169: Reunion
A170: Romania
A171: Russia
A172: Rwanda
A173: Saint Helena
A174: Saint Kitts & Nevis
A175: Saint Lucia
A176: St Pierre & Miquelon
A177: Saint Vincent and the Grenadines
A178: Samoa
A179: San Marino
A180: Sao Tome & Principe
A181: Saudi Arabia
A182: Senegal
A183: Serbia
A184: Seychelles
A185: Sierra Leone
A186: Singapore
A187: Slovakia
A188: Slovenia
A189: Solomon Islands
A190: Somalia
A191: South Africa
A192: Spain
A193: Sri Lanka
A194: Sudan
A195: Suriname
A196: Swaziland
A197: Sweden
A198: Switzerland
A199: Syria
A200: Taiwan
... 29 more rows

Sheet HavePREC_rates_matched_hayes
A1: RATES MATCHED (HAYES)
A2: 1-type I | B2: power | C2: z_a | D2: z_b | F2: Rank | G2: l_0 | H2: % | I2: l_1 | J2: # of | K2: cluster | L2: person | M2: km | N2: # clusters | S2: * to be conservative, round up
G3: Rate time 0 | H3: Reduction | I3: Rate time 1 | J3: yrs | K3: size | L3: years y | N3: per arm* | O3: MIS | P3: Male:Female | Q3: Prior MCCD | R3: Non-response | T3: y without clustering (y1) | U3: y with clustering (y2) | V3: DE
A4: =$O$37 -> 0.05 | B4: =$L$37 -> 0.8 | C4: =NORMSINV(1-(0.5*(A4))) -> 1.959963985 | D4: =NORMSINV(B4) -> 0.8416212336 | E4: =(C4+D4)^2 -> 7.848879734 | F4: 20th | G4: =MIN(G5:G24) ->  | H4: =PrecisionRate -> 0 | I4: =G4*(1-H4) ->  | J4: =O$33 -> 1 | K4: =$L$31 -> 18000 | L4: =J4*K4 -> 18000 | M4: =$L$35 -> 0.25 | N4: =2+E4*(((G4+I4)/L4)+(M4*M4)*((G4*G4)+(I4*I4)))/((G4-I4)^2) ->  | O4: =$L$39*N4 ->  | P4: =O4*$O$35 ->  | Q4: =P4*1/(1-$O$31) ->  | R4: =Q4*1/(1-$O$29) ->  | S4: =INT(R4)+1 ->  | T4: =E4*(G4+I4)/(G4-I4)^2 ->  | U4: =N4*L4 ->  | V4: =U4/T4 -> 
A5: =$O$37 -> 0.05 | B5: =$L$37 -> 0.8 | C5: =NORMSINV(1-(0.5*(A5))) -> 1.959963985 | D5: =NORMSINV(B5) -> 0.8416212336 | E5: =(C5+D5)^2 -> 7.848879734 | F5: =Mask1!E24 -> 0 | G5: =Mask1!H24/100000 -> 0 | H5: =1-I5/G5 ->  | I5: =(1/(2*L5*(N5+M5^2*(-E5)-2)))*(-SQRT(E5)*SQRT(8*N5*M5^2*G5^2*L5^2+8*N5*G5*L5-4*M5^4*G5^2*L5^2*E5-16*M5^2*G5^2*L5^2-4*M5^2*G5*L5*E5-16*G5*L5+E5)+2*N5*G5*L5-4*G5*L5+E5) ->  | J5: =O$33 -> 1 | K5: =$L$31 -> 18000 | L5: =J5*K5 -> 18000 | M5: =$L$35 -> 0.25 | N5: =O5/$L$39 ->  | O5: =P5/$O$35 ->  | P5: =Q5*(1-$O$31) ->  | Q5: =R5*(1-$O$29) ->  | R5: =$S$4 ->  | S5: =ROUND(R5,0) ->  | V5: =U5/T5 -> 
A6: =$O$37 -> 0.05 | B6: =$L$37 -> 0.8 | C6: =NORMSINV(1-(0.5*(A6))) -> 1.959963985 | D6: =NORMSINV(B6) -> 0.8416212336 | E6: =(C6+D6)^2 -> 7.848879734 | F6: =Mask1!E25 -> 0 | G6: =Mask1!H25/100000 -> 0 | H6: =1-I6/G6 ->  | I6: =(1/(2*L6*(N6+M6^2*(-E6)-2)))*(-SQRT(E6)*SQRT(8*N6*M6^2*G6^2*L6^2+8*N6*G6*L6-4*M6^4*G6^2*L6^2*E6-16*M6^2*G6^2*L6^2-4*M6^2*G6*L6*E6-16*G6*L6+E6)+2*N6*G6*L6-4*G6*L6+E6) ->  | J6: =O$33 -> 1 | K6: =$L$31 -> 18000 | L6: =J6*K6 -> 18000 | M6: =$L$35 -> 0.25 | N6: =O6/$L$39 ->  | O6: =P6/$O$35 ->  | P6: =Q6*(1-$O$31) ->  | Q6: =R6*(1-$O$29) ->  | R6: =$S$4 ->  | S6: =ROUND(R6,0) ->  | V6: =U6/T6 -> 
A7: =$O$37 -> 0.05 | B7: =$L$37 -> 0.8 | C7: =NORMSINV(1-(0.5*(A7))) -> 1.959963985 | D7: =NORMSINV(B7) -> 0.8416212336 | E7: =(C7+D7)^2 -> 7.848879734 | F7: =Mask1!E26 -> 0 | G7: =Mask1!H26/100000 -> 0 | H7: =1-I7/G7 ->  | J7: =O$33 -> 1 | K7: =$L$31 -> 18000 | L7: =J7*K7 -> 18000 | M7: =$L$35 -> 0.25
A8: 0.05 | B8: 0.8 | C8: 1.959963985 | D8: 0.8416212336 | E8: 7.848879734 | F8: =Mask1!E27 -> 0 | G8: =Mask1!H27/100000 -> 0 | J8: 1 | K8: 18000 | L8: 18000 | M8: 0.25
A9: 0.05 | B9: 0.8 | C9: 1.959963985 | D9: 0.8416212336 | E9: 7.848879734 | F9: =Mask1!E28 -> 0 | G9: =Mask1!H28/100000 -> 0 | J9: 1 | K9: 18000 | L9: 18000 | M9: 0.25
A10: 0.05 | B10: 0.8 | C10: 1.959963985 | D10: 0.8416212336 | E10: 7.848879734 | F10: =Mask1!E29 -> 0 | G10: =Mask1!H29/100000 -> 0 | J10: 1 | K10: 18000 | L10: 18000 | M10: 0.25
A11: 0.05 | B11: 0.8 | C11: 1.959963985 | D11: 0.8416212336 | E11: 7.848879734 | F11: =Mask1!#REF! ->  | G11: =Mask1!H30/100000 -> 0 | J11: 1 | K11: 18000 | L11: 18000 | M11: 0.25
A12: 0.05 | B12: 0.8 | C12: 1.959963985 | D12: 0.8416212336 | E12: 7.848879734 | F12: =Mask1!E31 -> 0 | G12: =Mask1!H31/100000 -> 0 | J12: 1 | K12: 18000 | L12: 18000 | M12: 0.25
A13: 0.05 | B13: 0.8 | C13: 1.959963985 | D13: 0.8416212336 | E13: 7.848879734 | F13: =Mask1!#REF! ->  | G13: =Mask1!#REF!/100000 ->  | J13: 1 | K13: 18000 | L13: 18000 | M13: 0.25
A14: 0.05 | B14: 0.8 | C14: 1.959963985 | D14: 0.8416212336 | E14: 7.848879734 | F14: =Mask1!#REF! ->  | G14: =Mask1!#REF!/100000 ->  | J14: 1 | K14: 18000 | L14: 18000 | M14: 0.25
A15: 0.05 | B15: 0.8 | C15: 1.959963985 | D15: 0.8416212336 | E15: 7.848879734 | F15: =Mask1!E32 -> 0 | G15: =Mask1!H32/100000 -> 0 | J15: 1 | K15: 18000 | L15: 18000 | M15: 0.25
A16: 0.05 | B16: 0.8 | C16: 1.959963985 | D16: 0.8416212336 | E16: 7.848879734 | F16: =Mask1!E33 -> 0 | G16: =Mask1!H33/100000 -> 0 | J16: 1 | K16: 18000 | L16: 18000 | M16: 0.25
A17: 0.05 | B17: 0.8 | C17: 1.959963985 | D17: 0.8416212336 | E17: 7.848879734 | F17: =Mask1!E34 -> 0 | G17: =Mask1!H34/100000 -> 0 | J17: 1 | K17: 18000 | L17: 18000 | M17: 0.25
A18: 0.05 | B18: 0.8 | C18: 1.959963985 | D18: 0.8416212336 | E18: 7.848879734 | F18: =Mask1!E35 -> 0 | G18: =Mask1!H35/100000 -> 0 | J18: 1 | K18: 18000 | L18: 18000 | M18: 0.25
A19: 0.05 | B19: 0.8 | C19: 1.959963985 | D19: 0.8416212336 | E19: 7.848879734 | F19: =Mask1!E36 -> 0 | G19: =Mask1!H36/100000 -> 0 | J19: 1 | K19: 18000 | L19: 18000 | M19: 0.25
A20: 0.05 | B20: 0.8 | C20: 1.959963985 | D20: 0.8416212336 | E20: 7.848879734 | F20: =Mask1!E37 -> 0 | G20: =Mask1!H37/100000 -> 0 | J20: 1 | K20: 18000 | L20: 18000 | M20: 0.25
A21: 0.05 | B21: 0.8 | C21: 1.959963985 | D21: 0.8416212336 | E21: 7.848879734 | F21: =Mask1!E38 -> 0 | G21: =Mask1!H38/100000 -> 0 | J21: 1 | K21: 18000 | L21: 18000 | M21: 0.25
A22: 0.05 | B22: 0.8 | C22: 1.959963985 | D22: 0.8416212336 | E22: 7.848879734 | F22: =Mask1!E39 -> 0 | G22: =Mask1!H39/100000 -> 0 | J22: 1 | K22: 18000 | L22: 18000 | M22: 0.25
A23: 0.05 | B23: 0.8 | C23: 1.959963985 | D23: 0.8416212336 | E23: 7.848879734 | F23: =Mask1!E40 -> 0 | G23: =Mask1!H40/100000 -> 0 | J23: 1 | K23: 18000 | L23: 18000 | M23: 0.25
A24: 0.05 | B24: 0.8 | C24: 1.959963985 | D24: 0.8416212336 | E24: 7.848879734 | F24: =Mask1!E41 -> 0 | G24: =Mask1!H41/100000 -> 0 | J24: 1 | K24: 18000 | L24: 18000 | M24: 0.25
S25: Clusters needed
K29: CDR | L29: =CDR -> 6.5 | N29: Non-response rate | O29: =NonResponse -> 0.1
J31: Cluster population | L31: =cluster_pop -> 18000 | N31: Prior MCCD | O31: =PriorMCCD -> 0.3
J33: Expected deaths | L33: =Expected_deaths -> 117 | N33: Years of follow up | O33: =YearsFollowUp -> 1
K35: k | L35: =Coeff_k -> 0.25 | N35: Male:Female | O35: =MaleFemale -> 2
K37: Power | L37: =Power -> 0.8 | N37: Significance Level | O37: =Significance -> 0.05
K39: MIS | L39: =MIS -> 1.5
B40: km = coefficient of variation within matched pairs
B45: From the book:
B60: or p.326 (plus +2 as written in the text):

Sheet HaveCLUSTER_rates_matched_hayes
A1: RATES MATCHED (HAYES)
A2: 1-type I | B2: power | C2: z_a | D2: z_b | F2: Rank | G2: l_0 | H2: % | I2: l_1 | J2: # of | K2: cluster | L2: person | M2: km | N2: # clusters | S2: * to be conservative, round up
G3: Rate time 0 | H3: Reduction | I3: Rate time 1 | J3: yrs | K3: size | L3: years y | N3: per arm* | O3: MIS | P3: Male:Female | Q3: Prior MCCD | R3: Non response | T3: y without clustering (y1) | U3: y with clustering (y2) | V3: DE
A4: =$P$37 -> 0.05 | B4: =$L$37 -> 0.8 | C4: =NORMSINV(1-(0.5*(A4))) -> 1.959963985 | D4: =NORMSINV(B4) -> 0.8416212336 | E4: =(C4+D4)^2 -> 7.848879734 | F4: 20th | G4: =MIN(G5:G24) ->  | H4: =MAX(H5:H24) ->  | S4: =NumberClusters -> 178 | T4: =E4*(G4+I4)/(G4-I4)^2 ->  | U4: =N4*L4 -> 0 | V4: =U4/T4 -> 
A5: 0.05 | B5: =$L$37 -> 0.8 | C5: =NORMSINV(1-(0.5*(A5))) -> 1.959963985 | D5: =NORMSINV(B5) -> 0.8416212336 | E5: =(C5+D5)^2 -> 7.848879734 | F5: =Mask1!E24 -> 0 | G5: =Mask1!H24/100000 -> 0 | H5: =1-I5/G5 ->  | I5: =(1/(2*L5*($O$5+M5^2*(-E5)-2)))*(-SQRT(E5)*SQRT(8*$O$5*M5^2*G5^2*L5^2+8*$O$5*G5*L5-4*M5^4*G5^2*L5^2*E5-16*M5^2*G5^2*L5^2-4*M5^2*G5*L5*E5-16*G5*L5+E5)+2*$O$5*G5*L5-4*G5*L5+E5) -> 0 | J5: =P$33 -> 1 | K5: =$L$31 -> 18000 | L5: =J5*K5 -> 18000 | M5: =$L$35 -> 0.25 | N5: =2+E5*(((G5+I5)/L5)+(M5*M5)*((G5*G5)+(I5*I5)))/((G5-I5)^2) ->  | O5: =P5/$L$39 -> 37.38 | P5: =Q5/$P$35 -> 56.07 | Q5: =R5*(1-$P$31) -> 112.14 | R5: =S5*(1-$P$29) -> 160.2 | S5: =S4 -> 178 | V5: =U5/T5 -> 
A6: 0.05 | B6: =$L$37 -> 0.8 | C6: =NORMSINV(1-(0.5*(A6))) -> 1.959963985 | D6: =NORMSINV(B6) -> 0.8416212336 | E6: =(C6+D6)^2 -> 7.848879734 | F6: =Mask1!E25 -> 0 | G6: =Mask1!H25/100000 -> 0 | H6: =1-I6/G6 ->  | I6: =(1/(2*L6*($O$5+M6^2*(-E6)-2)))*(-SQRT(E6)*SQRT(8*$O$5*M6^2*G6^2*L6^2+8*$O$5*G6*L6-4*M6^4*G6^2*L6^2*E6-16*M6^2*G6^2*L6^2-4*M6^2*G6*L6*E6-16*G6*L6+E6)+2*$O$5*G6*L6-4*G6*L6+E6) -> 0 | J6: 1 | K6: =$L$31 -> 18000 | L6: =J6*K6 -> 18000 | M6: =$L$35 -> 0.25 | N6: =2+E6*(((G6+I6)/L6)+(M6*M6)*((G6*G6)+(I6*I6)))/((G6-I6)^2) ->  | O6: =P6/$L$39 -> 37.38 | P6: 56.07 | Q6: 112.14 | R6: =S6*(1-$P$29) -> 160.2 | S6: =S5 -> 178 | V6: =U6/T6 -> 
A7: 0.05 | B7: =$L$37 -> 0.8 | C7: =NORMSINV(1-(0.5*(A7))) -> 1.959963985 | D7: =NORMSINV(B7) -> 0.8416212336 | E7: =(C7+D7)^2 -> 7.848879734 | F7: =Mask1!E26 -> 0 | G7: =Mask1!H26/100000 -> 0 | H7: =1-I7/G7 ->  | I7: 0 | J7: 1 | K7: =$L$31 -> 18000 | L7: =J7*K7 -> 18000 | M7: =$L$35 -> 0.25 | N7: =2+E7*(((G7+I7)/L7)+(M7*M7)*((G7*G7)+(I7*I7)))/((G7-I7)^2) ->  | O7: =P7/$L$39 -> 37.38 | P7: 56.07 | Q7: 112.14 | R7: 160.2 | S7: 178
A8: 0.05 | B8: 0.8 | C8: 1.959963985 | D8: 0.8416212336 | E8: 7.848879734 | F8: =Mask1!E27 -> 0 | G8: =Mask1!H27/100000 -> 0 | I8: 0 | J8: 1 | K8: 18000 | L8: 18000 | M8: 0.25 | O8: 37.38 | P8: 56.07 | Q8: 112.14 | R8: 160.2 | S8: 178
A9: 0.05 | B9: 0.8 | C9: 1.959963985 | D9: 0.8416212336 | E9: 7.848879734 | F9: =Mask1!E28 -> 0 | G9: =Mask1!H28/100000 -> 0 | I9: 0 | J9: 1 | K9: 18000 | L9: 18000 | M9: 0.25 | O9: 37.38 | P9: 56.07 | Q9: 112.14 | R9: 160.2 | S9: 178
A10: 0.05 | B10: 0.8 | C10: 1.959963985 | D10: 0.8416212336 | E10: 7.848879734 | F10: =Mask1!E29 -> 0 | G10: =Mask1!H29/100000 -> 0 | I10: 0 | J10: 1 | K10: 18000 | L10: 18000 | M10: 0.25 | O10: 37.38 | P10: 56.07 | Q10: 112.14 | R10: 160.2 | S10: 178
A11: 0.05 | B11: 0.8 | C11: 1.959963985 | D11: 0.8416212336 | E11: 7.848879734 | F11: =Mask1!#REF! ->  | G11: =Mask1!H30/100000 -> 0 | I11: 0 | J11: 1 | K11: 18000 | L11: 18000 | M11: 0.25 | O11: 37.38 | P11: 56.07 | Q11: 112.14 | R11: 160.2 | S11: 178
A12: 0.05 | B12: 0.8 | C12: 1.959963985 | D12: 0.8416212336 | E12: 7.848879734 | F12: =Mask1!E31 -> 0 | G12: =Mask1!H31/100000 -> 0 | I12: 0 | J12: 1 | K12: 18000 | L12: 18000 | M12: 0.25 | O12: 37.38 | P12: 56.07 | Q12: 112.14 | R12: 160.2 | S12: 178
A13: 0.05 | B13: 0.8 | C13: 1.959963985 | D13: 0.8416212336 | E13: 7.848879734 | F13: =Mask1!#REF! ->  | G13: =Mask1!#REF!/100000 ->  | J13: 1 | K13: 18000 | L13: 18000 | M13: 0.25 | O13: 37.38 | P13: 56.07 | Q13: 112.14 | R13: 160.2 | S13: 178
A14: 0.05 | B14: 0.8 | C14: 1.959963985 | D14: 0.8416212336 | E14: 7.848879734 | F14: =Mask1!#REF! ->  | G14: =Mask1!#REF!/100000 ->  | J14: 1 | K14: 18000 | L14: 18000 | M14: 0.25 | O14: 37.38 | P14: 56.07 | Q14: 112.14 | R14: 160.2 | S14: 178
A15: 0.05 | B15: 0.8 | C15: 1.959963985 | D15: 0.8416212336 | E15: 7.848879734 | F15: =Mask1!E32 -> 0 | G15: =Mask1!H32/100000 -> 0 | I15: 0 | J15: 1 | K15: 18000 | L15: 18000 | M15: 0.25 | O15: 37.38 | P15: 56.07 | Q15: 112.14 | R15: 160.2 | S15: 178
A16: 0.05 | B16: 0.8 | C16: 1.959963985 | D16: 0.8416212336 | E16: 7.848879734 | F16: =Mask1!E33 -> 0 | G16: =Mask1!H33/100000 -> 0 | I16: 0 | J16: 1 | K16: 18000 | L16: 18000 | M16: 0.25 | O16: 37.38 | P16: 56.07 | Q16: 112.14 | R16: 160.2 | S16: 178
A17: 0.05 | B17: 0.8 | C17: 1.959963985 | D17: 0.8416212336 | E17: 7.848879734 | F17: =Mask1!E34 -> 0 | G17: =Mask1!H34/100000 -> 0 | I17: 0 | J17: 1 | K17: 18000 | L17: 18000 | M17: 0.25 | O17: 37.38 | P17: 56.07 | Q17: 112.14 | R17: 160.2 | S17: 178
A18: 0.05 | B18: 0.8 | C18: 1.959963985 | D18: 0.8416212336 | E18: 7.848879734 | F18: =Mask1!E35 -> 0 | G18: =Mask1!H35/100000 -> 0 | I18: 0 | J18: 1 | K18: 18000 | L18: 18000 | M18: 0.25 | O18: 37.38 | P18: 56.07 | Q18: 112.14 | R18: 160.2 | S18: 178
A19: 0.05 | B19: 0.8 | C19: 1.959963985 | D19: 0.8416212336 | E19: 7.848879734 | F19: =Mask1!E36 -> 0 | G19: =Mask1!H36/100000 -> 0 | I19: 0 | J19: 1 | K19: 18000 | L19: 18000 | M19: 0.25 | O19: 37.38 | P19: 56.07 | Q19: 112.14 | R19: 160.2 | S19: 178
A20: 0.05 | B20: 0.8 | C20: 1.959963985 | D20: 0.8416212336 | E20: 7.848879734 | F20: =Mask1!E37 -> 0 | G20: =Mask1!H37/100000 -> 0 | I20: 0 | J20: 1 | K20: 18000 | L20: 18000 | M20: 0.25 | O20: 37.38 | P20: 56.07 | Q20: 112.14 | R20: 160.2 | S20: 178
A21: 0.05 | B21: 0.8 | C21: 1.959963985 | D21: 0.8416212336 | E21: 7.848879734 | F21: =Mask1!E38 -> 0 | G21: =Mask1!H38/100000 -> 0 | I21: 0 | J21: 1 | K21: 18000 | L21: 18000 | M21: 0.25 | O21: 37.38 | P21: 56.07 | Q21: 112.14 | R21: 160.2 | S21: 178
A22: 0.05 | B22: 0.8 | C22: 1.959963985 | D22: 0.8416212336 | E22: 7.848879734 | F22: =Mask1!E39 -> 0 | G22: =Mask1!H39/100000 -> 0 | I22: 0 | J22: 1 | K22: 18000 | L22: 18000 | M22: 0.25 | O22: 37.38 | P22: 56.07 | Q22: 112.14 | R22: 160.2 | S22: 178
A23: 0.05 | B23: 0.8 | C23: 1.959963985 | D23: 0.8416212336 | E23: 7.848879734 | F23: =Mask1!E40 -> 0 | G23: =Mask1!H40/100000 -> 0 | I23: 0 | J23: 1 | K23: 18000 | L23: 18000 | M23: 0.25 | O23: 37.38 | P23: 56.07 | Q23: 112.14 | R23: 160.2 | S23: 178
A24: 0.05 | B24: 0.8 | C24: 1.959963985 | D24: 0.8416212336 | E24: 7.848879734 | F24: =Mask1!E41 -> 0 | G24: =Mask1!H41/100000 -> 0 | I24: 0 | J24: 1 | K24: 18000 | L24: 18000 | M24: 0.25 | O24: 37.38 | P24: 56.07 | Q24: 112.14 | R24: 160.2 | S24: 178
S25: Clusters needed
K29: CDR | L29: =CDR -> 6.5 | O29: Non-response rate | P29: =NonResponse -> 0.1
J31: Cluster population | L31: =cluster_pop -> 18000 | O31: Prior MCCD | P31: =PriorMCCD -> 0.3
J33: Expected deaths | L33: =Expected_deaths -> 117 | O33: Years of follow up | P33: =YearsFollowUp -> 1
K35: k | L35: =Coeff_k -> 0.25 | O35: Male:Female | P35: =MaleFemale -> 2
K37: Power | L37: =Power -> 0.8 | O37: Significance Level | P37: =Significance -> 0.05
K39: MIS | L39: =MIS -> 1.5
B40: km = coefficient of variation within matched pairs
B45: From the book:
B60: or p.326 (plus +2 as written in the text):

Sheet Sheet1
A1: 670
A2: 1045.2
A4: =HARMEAN(A1:A2) -> 816.5625
